Workbook

Sheet Sheet1
C1: =YEAR(TODAY()) -> 2015 | D1: =MONTH(TODAY()) -> 8 | E1: =DAY(TODAY()) -> 4
B2: CQG Correlation by Date Dashboard
B4: Symbol | C4: Last | D4: NC | E4: %NC | H4: =B5 -> ZSE | I4: =B6 -> ZME | J4: =B7 -> ZLE | K4: =B8 -> ZWA | L4: =B9 -> ZCE | M4: =B10 -> CLE | N4: =B11 -> HOE | O4: =B12 -> RBE | P4: =B13 -> NGE | Q4: =B14 -> QO | R4: =B15 -> GCE | S4: =B16 -> SIE | T4: =B17 -> EU6 | U4: =B18 -> DXE
B5: ZSE | C5: =IF(B5="","",RTD("cqg.rtd", ,"ContractData",B5, "LastQuoteToday",, "T")) -> 948.25 | D5: =IF(B5="","",RTD("cqg.rtd", ,"ContractData",B5, "NetLastQuoteToday",, "T")) -> 12.75 | E5: =IF(B5="","",IF(ISERROR(RTD("cqg.rtd",,"ContractData",B5,"PerCentNetLastTrade",,"T")/100),"",RTD("cqg.rtd",,"ContractData",B5,"PerCentNetLastTrade",,"T")/100)) -> 0.01362907536 | F5: Correlations | G5: =B5 -> ZSE | I5: =IF(B5="","",RTD("cqg.rtd",,"StudyData", "Correlation("&B5&","&$I$4&",Period:="&$O$19&",InputChoice1:=Close,InputChoice2:=Close) when (LocalYear("&B5&")="&$I$19&" and LocalMonth("&B5&")="&$K$19&" and LocalDay("&B5&")="&$M$19&")", "Bar", "", "Close",$Q$19,, "all","", "","True","T")) -> 83.80710352 | J5: =IF(B5="","",RTD("cqg.rtd",,"StudyData", "Correlation("&B5&","&$J$4&",Period:="&$O$19&",InputChoice1:=Close,InputChoice2:=Close) when (LocalYear("&B5&")="&$I$19&" and LocalMonth("&B5&")="&$K$19&" and LocalDay("&B5&")="&$M$19&")", "Bar", "", "Close",$Q$19,, "all","", "","True","T")) -> 2.9102282 | K5: =IF(B5="","",RTD("cqg.rtd",,"StudyData", "Correlation("&B5&","&$K$4&",Period:="&$O$19&",InputChoice1:=Close,InputChoice2:=Close) when (LocalYear("&B5&")="&$I$19&" and LocalMonth("&B5&")="&$K$19&" and LocalDay("&B5&")="&$M$19&")", "Bar", "", "Close",$Q$19,, "all","", "","True","T")) -> -4.51691118 | L5: =IF(B5="","",RTD("cqg.rtd",,"StudyData", "Correlation("&B5&","&$L$4&",Period:="&$O$19&",InputChoice1:=Close,InputChoice2:=Close) when (LocalYear("&B5&")="&$I$19&" and LocalMonth("&B5&")="&$K$19&" and LocalDay("&B5&")="&$M$19&")", "Bar", "", "Close",$Q$19,, "all","", "","True","T")) -> -5.2222403 | M5: =IF(B5="","",RTD("cqg.rtd",,"StudyData", "Correlation("&B5&","&$M$4&",Period:="&$O$19&",InputChoice1:=Close,InputChoice2:=Close) when (LocalYear("&B5&")="&$I$19&" and LocalMonth("&B5&")="&$K$19&" and LocalDay("&B5&")="&$M$19&")", "Bar", "", "Close",$Q$19,, "all","", "","True","T")) -> 1.40773043 | N5: =IF(B5="","",RTD("cqg.rtd",,"StudyData", "Correlation("&B5&","&$N$4&",Period:="&$O$19&",InputChoice1:=Close,InputChoice2:=Close) when (LocalYear("&B5&")="&$I$19&" and LocalMonth("&B5&")="&$K$19&" and LocalDay("&B5&")="&$M$19&")", "Bar", "", "Close",$Q$19,, "all","", "","True","T")) -> 7.85170771 | O5: =IF(B5="","",RTD("cqg.rtd",,"StudyData", "Correlation("&B5&","&$O$4&",Period:="&$O$19&",InputChoice1:=Close,InputChoice2:=Close) when (LocalYear("&B5&")="&$I$19&" and LocalMonth("&B5&")="&$K$19&" and LocalDay("&B5&")="&$M$19&")", "Bar", "", "Close",$Q$19,, "all","", "","True","T")) -> 9.88757876 | P5: =IF(B5="","",RTD("cqg.rtd",,"StudyData", "Correlation("&B5&","&$P$4&",Period:="&$O$19&",InputChoice1:=Close,InputChoice2:=Close) when (LocalYear("&B5&")="&$I$19&" and LocalMonth("&B5&")="&$K$19&" and LocalDay("&B5&")="&$M$19&")", "Bar", "", "Close",$Q$19,, "all","", "","True","T")) -> -27.84622018 | Q5: =IF(B5="","",RTD("cqg.rtd",,"StudyData", "Correlation("&B5&","&$Q$4&",Period:="&$O$19&",InputChoice1:=Close,InputChoice2:=Close) when (LocalYear("&B5&")="&$I$19&" and LocalMonth("&B5&")="&$K$19&" and LocalDay("&B5&")="&$M$19&")", "Bar", "", "Close",$Q$19,, "all","", "","True","T")) -> 13.74635696 | R5: =IF(B5="","",RTD("cqg.rtd",,"StudyData", "Correlation("&B5&","&$R$4&",Period:="&$O$19&",InputChoice1:=Close,InputChoice2:=Close) when (LocalYear("&B5&")="&$I$19&" and LocalMonth("&B5&")="&$K$19&" and LocalDay("&B5&")="&$M$19&")", "Bar", "", "Close",$Q$19,, "all","", "","True","T")) -> 26.16330836 | S5: =IF(B5="","",RTD("cqg.rtd",,"StudyData", "Correlation("&B5&","&$S$4&",Period:="&$O$19&",InputChoice1:=Close,InputChoice2:=Close) when (LocalYear("&B5&")="&$I$19&" and LocalMonth("&B5&")="&$K$19&" and LocalDay("&B5&")="&$M$19&")", "Bar", "", "Close",$Q$19,, "all","", "","True","T")) -> 17.23862065 | T5: =IF(B5="","",RTD("cqg.rtd",,"StudyData", "Correlation("&B5&","&$T$4&",Period:="&$O$19&",InputChoice1:=Close,InputChoice2:=Close) when (LocalYear("&B5&")="&$I$19&" and LocalMonth("&B5&")="&$K$19&" and LocalDay("&B5&")="&$M$19&")", "Bar", "", "Close",$Q$19,, "all","", "","True","T")) -> 13.74065801 | U5: =IF(B5="","",RTD("cqg.rtd",,"StudyData", "Correlation("&B5&","&$U$4&",Period:="&$O$19&",InputChoice1:=Close,InputChoice2:=Close) when (LocalYear("&B5&")="&$I$19&" and LocalMonth("&B5&")="&$K$19&" and LocalDay("&B5&")="&$M$19&")", "Bar", "", "Close",$Q$19,, "all","", "","True","T")) -> -13.26556014
B6: ZME | C6: =IF(B6="","",RTD("cqg.rtd", ,"ContractData",B6, "LastQuoteToday",, "T")) -> 326.4 | D6: =IF(B6="","",RTD("cqg.rtd", ,"ContractData",B6, "NetLastQuoteToday",, "T")) -> 5.4 | E6: =IF(B6="","",IF(ISERROR(RTD("cqg.rtd",,"ContractData",B6,"PerCentNetLastTrade",,"T")/100),"",RTD("cqg.rtd",,"ContractData",B6,"PerCentNetLastTrade",,"T")/100)) -> 0.01682242991 | G6: =B6 -> ZME | H6: =IF(B6="","",RTD("cqg.rtd",,"StudyData", "Correlation("&B6&","&$H$4&",Period:="&$O$19&",InputChoice1:=Close,InputChoice2:=Close) when (LocalYear("&B6&")="&$I$19&" and LocalMonth("&B6&")="&$K$19&" and LocalDay("&B6&")="&$M$19&")", "Bar", "", "Close",$Q$19,, "all","", "","True","T")) -> 83.80710352 | J6: =IF(B6="","",RTD("cqg.rtd",,"StudyData", "Correlation("&B6&","&$J$4&",Period:="&$O$19&",InputChoice1:=Close,InputChoice2:=Close) when (LocalYear("&B6&")="&$I$19&" and LocalMonth("&B6&")="&$K$19&" and LocalDay("&B6&")="&$M$19&")", "Bar", "", "Close",$Q$19,, "all","", "","True","T")) -> -49.19076908 | K6: =IF(B6="","",RTD("cqg.rtd",,"StudyData", "Correlation("&B6&","&$K$4&",Period:="&$O$19&",InputChoice1:=Close,InputChoice2:=Close) when (LocalYear("&B6&")="&$I$19&" and LocalMonth("&B6&")="&$K$19&" and LocalDay("&B6&")="&$M$19&")", "Bar", "", "Close",$Q$19,, "all","", "","True","T")) -> 8.08850674 | L6: =IF(B6="","",RTD("cqg.rtd",,"StudyData", "Correlation("&B6&","&$L$4&",Period:="&$O$19&",InputChoice1:=Close,InputChoice2:=Close) when (LocalYear("&B6&")="&$I$19&" and LocalMonth("&B6&")="&$K$19&" and LocalDay("&B6&")="&$M$19&")", "Bar", "", "Close",$Q$19,, "all","", "","True","T")) -> 18.08575011 | M6: =IF(B6="","",RTD("cqg.rtd",,"StudyData", "Correlation("&B6&","&$M$4&",Period:="&$O$19&",InputChoice1:=Close,InputChoice2:=Close) when (LocalYear("&B6&")="&$I$19&" and LocalMonth("&B6&")="&$K$19&" and LocalDay("&B6&")="&$M$19&")", "Bar", "", "Close",$Q$19,, "all","", "","True","T")) -> -31.73634174 | N6: =IF(B6="","",RTD("cqg.rtd",,"StudyData", "Correlation("&B6&","&$N$4&",Period:="&$O$19&",InputChoice1:=Close,InputChoice2:=Close) when (LocalYear("&B6&")="&$I$19&" and LocalMonth("&B6&")="&$K$19&" and LocalDay("&B6&")="&$M$19&")", "Bar", "", "Close",$Q$19,, "all","", "","True","T")) -> -21.05044556 | O6: =IF(B6="","",RTD("cqg.rtd",,"StudyData", "Correlation("&B6&","&$O$4&",Period:="&$O$19&",InputChoice1:=Close,InputChoice2:=Close) when (LocalYear("&B6&")="&$I$19&" and LocalMonth("&B6&")="&$K$19&" and LocalDay("&B6&")="&$M$19&")", "Bar", "", "Close",$Q$19,, "all","", "","True","T")) -> -9.52462734 | P6: =IF(B6="","",RTD("cqg.rtd",,"StudyData", "Correlation("&B6&","&$P$4&",Period:="&$O$19&",InputChoice1:=Close,InputChoice2:=Close) when (LocalYear("&B6&")="&$I$19&" and LocalMonth("&B6&")="&$K$19&" and LocalDay("&B6&")="&$M$19&")", "Bar", "", "Close",$Q$19,, "all","", "","True","T")) -> -56.42931778 | Q6: =IF(B6="","",RTD("cqg.rtd",,"StudyData", "Correlation("&B6&","&$Q$4&",Period:="&$O$19&",InputChoice1:=Close,InputChoice2:=Close) when (LocalYear("&B6&")="&$I$19&" and LocalMonth("&B6&")="&$K$19&" and LocalDay("&B6&")="&$M$19&")", "Bar", "", "Close",$Q$19,, "all","", "","True","T")) -> -11.6550954 | R6: =IF(B6="","",RTD("cqg.rtd",,"StudyData", "Correlation("&B6&","&$R$4&",Period:="&$O$19&",InputChoice1:=Close,InputChoice2:=Close) when (LocalYear("&B6&")="&$I$19&" and LocalMonth("&B6&")="&$K$19&" and LocalDay("&B6&")="&$M$19&")", "Bar", "", "Close",$Q$19,, "all","", "","True","T")) -> 36.93620755 | S6: =IF(B6="","",RTD("cqg.rtd",,"StudyData", "Correlation("&B6&","&$S$4&",Period:="&$O$19&",InputChoice1:=Close,InputChoice2:=Close) when (LocalYear("&B6&")="&$I$19&" and LocalMonth("&B6&")="&$K$19&" and LocalDay("&B6&")="&$M$19&")", "Bar", "", "Close",$Q$19,, "all","", "","True","T")) -> 2.42191511 | T6: =IF(B6="","",RTD("cqg.rtd",,"StudyData", "Correlation("&B6&","&$T$4&",Period:="&$O$19&",InputChoice1:=Close,InputChoice2:=Close) when (LocalYear("&B6&")="&$I$19&" and LocalMonth("&B6&")="&$K$19&" and LocalDay("&B6&")="&$M$19&")", "Bar", "", "Close",$Q$19,, "all","", "","True","T")) -> -11.70765803 | U6: =IF(B6="","",RTD("cqg.rtd",,"StudyData", "Correlation("&B6&","&$U$4&",Period:="&$O$19&",InputChoice1:=Close,InputChoice2:=Close) when (LocalYear("&B6&")="&$I$19&" and LocalMonth("&B6&")="&$K$19&" and LocalDay("&B6&")="&$M$19&")", "Bar", "", "Close",$Q$19,, "all","", "","True","T")) -> 12.01340908
B7: ZLE | C7: =IF(B7="","",RTD("cqg.rtd", ,"ContractData",B7, "LastQuoteToday",, "T")) -> 30.49 | D7: =IF(B7="","",RTD("cqg.rtd", ,"ContractData",B7, "NetLastQuoteToday",, "T")) -> 0.19 | E7: =IF(B7="","",IF(ISERROR(RTD("cqg.rtd",,"ContractData",B7,"PerCentNetLastTrade",,"T")/100),"",RTD("cqg.rtd",,"ContractData",B7,"PerCentNetLastTrade",,"T")/100)) -> 0.006600660066 | G7: ZLE | H7: =IF(B7="","",RTD("cqg.rtd",,"StudyData", "Correlation("&B7&","&$H$4&",Period:="&$O$19&",InputChoice1:=Close,InputChoice2:=Close) when (LocalYear("&B7&")="&$I$19&" and LocalMonth("&B7&")="&$K$19&" and LocalDay("&B7&")="&$M$19&")", "Bar", "", "Close",$Q$19,, "all","", "","True","T")) -> 2.9102282 | I7: =IF(B7="","",RTD("cqg.rtd",,"StudyData", "Correlation("&B7&","&$I$4&",Period:="&$O$19&",InputChoice1:=Close,InputChoice2:=Close) when (LocalYear("&B7&")="&$I$19&" and LocalMonth("&B7&")="&$K$19&" and LocalDay("&B7&")="&$M$19&")", "Bar", "", "Close",$Q$19,, "all","", "","True","T")) -> -49.19076908 | K7: =IF(B7="","",RTD("cqg.rtd",,"StudyData", "Correlation("&B7&","&$K$4&",Period:="&$O$19&",InputChoice1:=Close,InputChoice2:=Close) when (LocalYear("&B7&")="&$I$19&" and LocalMonth("&B7&")="&$K$19&" and LocalDay("&B7&")="&$M$19&")", "Bar", "", "Close",$Q$19,, "all","", "","True","T")) -> -29.29572893 | L7: =IF(B7="","",RTD("cqg.rtd",,"StudyData", "Correlation("&B7&","&$L$4&",Period:="&$O$19&",InputChoice1:=Close,InputChoice2:=Close) when (LocalYear("&B7&")="&$I$19&" and LocalMonth("&B7&")="&$K$19&" and LocalDay("&B7&")="&$M$19&")", "Bar", "", "Close",$Q$19,, "all","", "","True","T")) -> -46.85309917 | M7: =IF(B7="","",RTD("cqg.rtd",,"StudyData", "Correlation("&B7&","&$M$4&",Period:="&$O$19&",InputChoice1:=Close,InputChoice2:=Close) when (LocalYear("&B7&")="&$I$19&" and LocalMonth("&B7&")="&$K$19&" and LocalDay("&B7&")="&$M$19&")", "Bar", "", "Close",$Q$19,, "all","", "","True","T")) -> 68.33817401 | N7: =IF(B7="","",RTD("cqg.rtd",,"StudyData", "Correlation("&B7&","&$N$4&",Period:="&$O$19&",InputChoice1:=Close,InputChoice2:=Close) when (LocalYear("&B7&")="&$I$19&" and LocalMonth("&B7&")="&$K$19&" and LocalDay("&B7&")="&$M$19&")", "Bar", "", "Close",$Q$19,, "all","", "","True","T")) -> 54.53811762 | O7: =IF(B7="","",RTD("cqg.rtd",,"StudyData", "Correlation("&B7&","&$O$4&",Period:="&$O$19&",InputChoice1:=Close,InputChoice2:=Close) when (LocalYear("&B7&")="&$I$19&" and LocalMonth("&B7&")="&$K$19&" and LocalDay("&B7&")="&$M$19&")", "Bar", "", "Close",$Q$19,, "all","", "","True","T")) -> 32.95828998 | P7: =IF(B7="","",RTD("cqg.rtd",,"StudyData", "Correlation("&B7&","&$P$4&",Period:="&$O$19&",InputChoice1:=Close,InputChoice2:=Close) when (LocalYear("&B7&")="&$I$19&" and LocalMonth("&B7&")="&$K$19&" and LocalDay("&B7&")="&$M$19&")", "Bar", "", "Close",$Q$19,, "all","", "","True","T")) -> 71.70154968 | Q7: =IF(B7="","",RTD("cqg.rtd",,"StudyData", "Correlation("&B7&","&$Q$4&",Period:="&$O$19&",InputChoice1:=Close,InputChoice2:=Close) when (LocalYear("&B7&")="&$I$19&" and LocalMonth("&B7&")="&$K$19&" and LocalDay("&B7&")="&$M$19&")", "Bar", "", "Close",$Q$19,, "all","", "","True","T")) -> 45.63594862 | R7: =IF(B7="","",RTD("cqg.rtd",,"StudyData", "Correlation("&B7&","&$R$4&",Period:="&$O$19&",InputChoice1:=Close,InputChoice2:=Close) when (LocalYear("&B7&")="&$I$19&" and LocalMonth("&B7&")="&$K$19&" and LocalDay("&B7&")="&$M$19&")", "Bar", "", "Close",$Q$19,, "all","", "","True","T")) -> -29.45794469 | S7: =IF(B7="","",RTD("cqg.rtd",,"StudyData", "Correlation("&B7&","&$S$4&",Period:="&$O$19&",InputChoice1:=Close,InputChoice2:=Close) when (LocalYear("&B7&")="&$I$19&" and LocalMonth("&B7&")="&$K$19&" and LocalDay("&B7&")="&$M$19&")", "Bar", "", "Close",$Q$19,, "all","", "","True","T")) -> 32.09498855 | T7: =IF(B7="","",RTD("cqg.rtd",,"StudyData", "Correlation("&B7&","&$T$4&",Period:="&$O$19&",InputChoice1:=Close,InputChoice2:=Close) when (LocalYear("&B7&")="&$I$19&" and LocalMonth("&B7&")="&$K$19&" and LocalDay("&B7&")="&$M$19&")", "Bar", "", "Close",$Q$19,, "all","", "","True","T")) -> 53.18576558 | U7: =IF(B7="","",RTD("cqg.rtd",,"StudyData", "Correlation("&B7&","&$U$4&",Period:="&$O$19&",InputChoice1:=Close,InputChoice2:=Close) when (LocalYear("&B7&")="&$I$19&" and LocalMonth("&B7&")="&$K$19&" and LocalDay("&B7&")="&$M$19&")", "Bar", "", "Close",$Q$19,, "all","", "","True","T")) -> -53.33687588
B8: ZWA | C8: =IF(B8="","",RTD("cqg.rtd", ,"ContractData",B8, "LastQuoteToday",, "T")) -> 500.5 | D8: =IF(B8="","",RTD("cqg.rtd", ,"ContractData",B8, "NetLastQuoteToday",, "T")) -> 1.5 | E8: =IF(B8="","",IF(ISERROR(RTD("cqg.rtd",,"ContractData",B8,"PerCentNetLastTrade",,"T")/100),"",RTD("cqg.rtd",,"ContractData",B8,"PerCentNetLastTrade",,"T")/100)) -> 0.003006012024 | G8: ZWA | H8: =IF(B8="","",RTD("cqg.rtd",,"StudyData", "Correlation("&B8&","&$H$4&",Period:="&$O$19&",InputChoice1:=Close,InputChoice2:=Close) when (LocalYear("&B8&")="&$I$19&" and LocalMonth("&B8&")="&$K$19&" and LocalDay("&B8&")="&$M$19&")", "Bar", "", "Close",$Q$19,, "all","", "","True","T")) -> -4.51691118 | I8: =IF(B8="","",RTD("cqg.rtd",,"StudyData", "Correlation("&B8&","&$I$4&",Period:="&$O$19&",InputChoice1:=Close,InputChoice2:=Close) when (LocalYear("&B8&")="&$I$19&" and LocalMonth("&B8&")="&$K$19&" and LocalDay("&B8&")="&$M$19&")", "Bar", "", "Close",$Q$19,, "all","", "","True","T")) -> 8.08850674 | J8: =IF(B8="","",RTD("cqg.rtd",,"StudyData", "Correlation("&B8&","&$J$4&",Period:="&$O$19&",InputChoice1:=Close,InputChoice2:=Close) when (LocalYear("&B8&")="&$I$19&" and LocalMonth("&B8&")="&$K$19&" and LocalDay("&B8&")="&$M$19&")", "Bar", "", "Close",$Q$19,, "all","", "","True","T")) -> -29.29572893 | L8: =IF(B8="","",RTD("cqg.rtd",,"StudyData", "Correlation("&B8&","&$L$4&",Period:="&$O$19&",InputChoice1:=Close,InputChoice2:=Close) when (LocalYear("&B8&")="&$I$19&" and LocalMonth("&B8&")="&$K$19&" and LocalDay("&B8&")="&$M$19&")", "Bar", "", "Close",$Q$19,, "all","", "","True","T")) -> 81.03663532 | M8: =IF(B8="","",RTD("cqg.rtd",,"StudyData", "Correlation("&B8&","&$M$4&",Period:="&$O$19&",InputChoice1:=Close,InputChoice2:=Close) when (LocalYear("&B8&")="&$I$19&" and LocalMonth("&B8&")="&$K$19&" and LocalDay("&B8&")="&$M$19&")", "Bar", "", "Close",$Q$19,, "all","", "","True","T")) -> -59.10487502 | N8: =IF(B8="","",RTD("cqg.rtd",,"StudyData", "Correlation("&B8&","&$N$4&",Period:="&$O$19&",InputChoice1:=Close,InputChoice2:=Close) when (LocalYear("&B8&")="&$I$19&" and LocalMonth("&B8&")="&$K$19&" and LocalDay("&B8&")="&$M$19&")", "Bar", "", "Close",$Q$19,, "all","", "","True","T")) -> -77.65145159 | O8: =IF(B8="","",RTD("cqg.rtd",,"StudyData", "Correlation("&B8&","&$O$4&",Period:="&$O$19&",InputChoice1:=Close,InputChoice2:=Close) when (LocalYear("&B8&")="&$I$19&" and LocalMonth("&B8&")="&$K$19&" and LocalDay("&B8&")="&$M$19&")", "Bar", "", "Close",$Q$19,, "all","", "","True","T")) -> -79.12224065 | P8: =IF(B8="","",RTD("cqg.rtd",,"StudyData", "Correlation("&B8&","&$P$4&",Period:="&$O$19&",InputChoice1:=Close,InputChoice2:=Close) when (LocalYear("&B8&")="&$I$19&" and LocalMonth("&B8&")="&$K$19&" and LocalDay("&B8&")="&$M$19&")", "Bar", "", "Close",$Q$19,, "all","", "","True","T")) -> -44.35396226 | Q8: =IF(B8="","",RTD("cqg.rtd",,"StudyData", "Correlation("&B8&","&$Q$4&",Period:="&$O$19&",InputChoice1:=Close,InputChoice2:=Close) when (LocalYear("&B8&")="&$I$19&" and LocalMonth("&B8&")="&$K$19&" and LocalDay("&B8&")="&$M$19&")", "Bar", "", "Close",$Q$19,, "all","", "","True","T")) -> -76.23079915 | R8: =IF(B8="","",RTD("cqg.rtd",,"StudyData", "Correlation("&B8&","&$R$4&",Period:="&$O$19&",InputChoice1:=Close,InputChoice2:=Close) when (LocalYear("&B8&")="&$I$19&" and LocalMonth("&B8&")="&$K$19&" and LocalDay("&B8&")="&$M$19&")", "Bar", "", "Close",$Q$19,, "all","", "","True","T")) -> 18.7597148 | S8: =IF(B8="","",RTD("cqg.rtd",,"StudyData", "Correlation("&B8&","&$S$4&",Period:="&$O$19&",InputChoice1:=Close,InputChoice2:=Close) when (LocalYear("&B8&")="&$I$19&" and LocalMonth("&B8&")="&$K$19&" and LocalDay("&B8&")="&$M$19&")", "Bar", "", "Close",$Q$19,, "all","", "","True","T")) -> -64.06965947 | T8: =IF(B8="","",RTD("cqg.rtd",,"StudyData", "Correlation("&B8&","&$T$4&",Period:="&$O$19&",InputChoice1:=Close,InputChoice2:=Close) when (LocalYear("&B8&")="&$I$19&" and LocalMonth("&B8&")="&$K$19&" and LocalDay("&B8&")="&$M$19&")", "Bar", "", "Close",$Q$19,, "all","", "","True","T")) -> -77.06030129 | U8: =IF(B8="","",RTD("cqg.rtd",,"StudyData", "Correlation("&B8&","&$U$4&",Period:="&$O$19&",InputChoice1:=Close,InputChoice2:=Close) when (LocalYear("&B8&")="&$I$19&" and LocalMonth("&B8&")="&$K$19&" and LocalDay("&B8&")="&$M$19&")", "Bar", "", "Close",$Q$19,, "all","", "","True","T")) -> 76.24565453
B9: ZCE | C9: =IF(B9="","",RTD("cqg.rtd", ,"ContractData",B9, "LastQuoteToday",, "T")) -> 381.25 | D9: =IF(B9="","",RTD("cqg.rtd", ,"ContractData",B9, "NetLastQuoteToday",, "T")) -> 4.75 | E9: =IF(B9="","",IF(ISERROR(RTD("cqg.rtd",,"ContractData",B9,"PerCentNetLastTrade",,"T")/100),"",RTD("cqg.rtd",,"ContractData",B9,"PerCentNetLastTrade",,"T")/100)) -> 0.01195219124 | G9: ZCE | H9: =IF(B9="","",RTD("cqg.rtd",,"StudyData", "Correlation("&B9&","&$H$4&",Period:="&$O$19&",InputChoice1:=Close,InputChoice2:=Close) when (LocalYear("&B9&")="&$I$19&" and LocalMonth("&B9&")="&$K$19&" and LocalDay("&B9&")="&$M$19&")", "Bar", "", "Close",$Q$19,, "all","", "","True","T")) -> -5.2222403 | I9: =IF(B9="","",RTD("cqg.rtd",,"StudyData", "Correlation("&B9&","&$I$4&",Period:="&$O$19&",InputChoice1:=Close,InputChoice2:=Close) when (LocalYear("&B9&")="&$I$19&" and LocalMonth("&B9&")="&$K$19&" and LocalDay("&B9&")="&$M$19&")", "Bar", "", "Close",$Q$19,, "all","", "","True","T")) -> 18.08575011 | J9: =IF(B9="","",RTD("cqg.rtd",,"StudyData", "Correlation("&B9&","&$J$4&",Period:="&$O$19&",InputChoice1:=Close,InputChoice2:=Close) when (LocalYear("&B9&")="&$I$19&" and LocalMonth("&B9&")="&$K$19&" and LocalDay("&B9&")="&$M$19&")", "Bar", "", "Close",$Q$19,, "all","", "","True","T")) -> -46.85309917 | K9: =IF(B9="","",RTD("cqg.rtd",,"StudyData", "Correlation("&B9&","&$K$4&",Period:="&$O$19&",InputChoice1:=Close,InputChoice2:=Close) when (LocalYear("&B9&")="&$I$19&" and LocalMonth("&B9&")="&$K$19&" and LocalDay("&B9&")="&$M$19&")", "Bar", "", "Close",$Q$19,, "all","", "","True","T")) -> 81.03663532 | M9: =IF(B9="","",RTD("cqg.rtd",,"StudyData", "Correlation("&B9&","&$M$4&",Period:="&$O$19&",InputChoice1:=Close,InputChoice2:=Close) when (LocalYear("&B9&")="&$I$19&" and LocalMonth("&B9&")="&$K$19&" and LocalDay("&B9&")="&$M$19&")", "Bar", "", "Close",$Q$19,, "all","", "","True","T")) -> -57.78750284 | N9: =IF(B9="","",RTD("cqg.rtd",,"StudyData", "Correlation("&B9&","&$N$4&",Period:="&$O$19&",InputChoice1:=Close,InputChoice2:=Close) when (LocalYear("&B9&")="&$I$19&" and LocalMonth("&B9&")="&$K$19&" and LocalDay("&B9&")="&$M$19&")", "Bar", "", "Close",$Q$19,, "all","", "","True","T")) -> -79.0037935 | O9: =IF(B9="","",RTD("cqg.rtd",,"StudyData", "Correlation("&B9&","&$O$4&",Period:="&$O$19&",InputChoice1:=Close,InputChoice2:=Close) when (LocalYear("&B9&")="&$I$19&" and LocalMonth("&B9&")="&$K$19&" and LocalDay("&B9&")="&$M$19&")", "Bar", "", "Close",$Q$19,, "all","", "","True","T")) -> -80.98180803 | P9: =IF(B9="","",RTD("cqg.rtd",,"StudyData", "Correlation("&B9&","&$P$4&",Period:="&$O$19&",InputChoice1:=Close,InputChoice2:=Close) when (LocalYear("&B9&")="&$I$19&" and LocalMonth("&B9&")="&$K$19&" and LocalDay("&B9&")="&$M$19&")", "Bar", "", "Close",$Q$19,, "all","", "","True","T")) -> -48.32302244 | Q9: =IF(B9="","",RTD("cqg.rtd",,"StudyData", "Correlation("&B9&","&$Q$4&",Period:="&$O$19&",InputChoice1:=Close,InputChoice2:=Close) when (LocalYear("&B9&")="&$I$19&" and LocalMonth("&B9&")="&$K$19&" and LocalDay("&B9&")="&$M$19&")", "Bar", "", "Close",$Q$19,, "all","", "","True","T")) -> -76.69464145 | R9: =IF(B9="","",RTD("cqg.rtd",,"StudyData", "Correlation("&B9&","&$R$4&",Period:="&$O$19&",InputChoice1:=Close,InputChoice2:=Close) when (LocalYear("&B9&")="&$I$19&" and LocalMonth("&B9&")="&$K$19&" and LocalDay("&B9&")="&$M$19&")", "Bar", "", "Close",$Q$19,, "all","", "","True","T")) -> 34.35054602 | S9: =IF(B9="","",RTD("cqg.rtd",,"StudyData", "Correlation("&B9&","&$S$4&",Period:="&$O$19&",InputChoice1:=Close,InputChoice2:=Close) when (LocalYear("&B9&")="&$I$19&" and LocalMonth("&B9&")="&$K$19&" and LocalDay("&B9&")="&$M$19&")", "Bar", "", "Close",$Q$19,, "all","", "","True","T")) -> -47.22971546 | T9: =IF(B9="","",RTD("cqg.rtd",,"StudyData", "Correlation("&B9&","&$T$4&",Period:="&$O$19&",InputChoice1:=Close,InputChoice2:=Close) when (LocalYear("&B9&")="&$I$19&" and LocalMonth("&B9&")="&$K$19&" and LocalDay("&B9&")="&$M$19&")", "Bar", "", "Close",$Q$19,, "all","", "","True","T")) -> -84.83385366 | U9: =IF(B9="","",RTD("cqg.rtd",,"StudyData", "Correlation("&B9&","&$U$4&",Period:="&$O$19&",InputChoice1:=Close,InputChoice2:=Close) when (LocalYear("&B9&")="&$I$19&" and LocalMonth("&B9&")="&$K$19&" and LocalDay("&B9&")="&$M$19&")", "Bar", "", "Close",$Q$19,, "all","", "","True","T")) -> 86.65538101
B10: CLE | C10: =IF(B10="","",RTD("cqg.rtd", ,"ContractData",B10, "LastQuoteToday",, "T")) -> 46.04 | D10: =IF(B10="","",RTD("cqg.rtd", ,"ContractData",B10, "NetLastQuoteToday",, "T")) -> 0.87 | E10: =IF(B10="","",IF(ISERROR(RTD("cqg.rtd",,"ContractData",B10,"PerCentNetLastTrade",,"T")/100),"",RTD("cqg.rtd",,"ContractData",B10,"PerCentNetLastTrade",,"T")/100)) -> 0.01926057118 | G10: CLE | H10: =IF(B10="","",RTD("cqg.rtd",,"StudyData", "Correlation("&B10&","&$H$4&",Period:="&$O$19&",InputChoice1:=Close,InputChoice2:=Close) when (LocalYear("&B10&")="&$I$19&" and LocalMonth("&B10&")="&$K$19&" and LocalDay("&B10&")="&$M$19&")", "Bar", "", "Close",$Q$19,, "all","", "","True","T")) -> 1.40773043 | I10: =IF(B10="","",RTD("cqg.rtd",,"StudyData", "Correlation("&B10&","&$I$4&",Period:="&$O$19&",InputChoice1:=Close,InputChoice2:=Close) when (LocalYear("&B10&")="&$I$19&" and LocalMonth("&B10&")="&$K$19&" and LocalDay("&B10&")="&$M$19&")", "Bar", "", "Close",$Q$19,, "all","", "","True","T")) -> -31.73634173 | J10: =IF(B10="","",RTD("cqg.rtd",,"StudyData", "Correlation("&B10&","&$J$4&",Period:="&$O$19&",InputChoice1:=Close,InputChoice2:=Close) when (LocalYear("&B10&")="&$I$19&" and LocalMonth("&B10&")="&$K$19&" and LocalDay("&B10&")="&$M$19&")", "Bar", "", "Close",$Q$19,, "all","", "","True","T")) -> 68.33817401 | K10: =IF(B10="","",RTD("cqg.rtd",,"StudyData", "Correlation("&B10&","&$K$4&",Period:="&$O$19&",InputChoice1:=Close,InputChoice2:=Close) when (LocalYear("&B10&")="&$I$19&" and LocalMonth("&B10&")="&$K$19&" and LocalDay("&B10&")="&$M$19&")", "Bar", "", "Close",$Q$19,, "all","", "","True","T")) -> -59.10487502 | L10: =IF(B10="","",RTD("cqg.rtd",,"StudyData", "Correlation("&B10&","&$L$4&",Period:="&$O$19&",InputChoice1:=Close,InputChoice2:=Close) when (LocalYear("&B10&")="&$I$19&" and LocalMonth("&B10&")="&$K$19&" and LocalDay("&B10&")="&$M$19&")", "Bar", "", "Close",$Q$19,, "all","", "","True","T")) -> -57.78750284 | N10: =IF(B10="","",RTD("cqg.rtd",,"StudyData", "Correlation("&B10&","&$N$4&",Period:="&$O$19&",InputChoice1:=Close,InputChoice2:=Close) when (LocalYear("&B10&")="&$I$19&" and LocalMonth("&B10&")="&$K$19&" and LocalDay("&B10&")="&$M$19&")", "Bar", "", "Close",$Q$19,, "all","", "","True","T")) -> 88.85763042 | O10: =IF(B10="","",RTD("cqg.rtd",,"StudyData", "Correlation("&B10&","&$O$4&",Period:="&$O$19&",InputChoice1:=Close,InputChoice2:=Close) when (LocalYear("&B10&")="&$I$19&" and LocalMonth("&B10&")="&$K$19&" and LocalDay("&B10&")="&$M$19&")", "Bar", "", "Close",$Q$19,, "all","", "","True","T")) -> 71.68533127 | P10: =IF(B10="","",RTD("cqg.rtd",,"StudyData", "Correlation("&B10&","&$P$4&",Period:="&$O$19&",InputChoice1:=Close,InputChoice2:=Close) when (LocalYear("&B10&")="&$I$19&" and LocalMonth("&B10&")="&$K$19&" and LocalDay("&B10&")="&$M$19&")", "Bar", "", "Close",$Q$19,, "all","", "","True","T")) -> 79.88455179 | Q10: =IF(B10="","",RTD("cqg.rtd",,"StudyData", "Correlation("&B10&","&$Q$4&",Period:="&$O$19&",InputChoice1:=Close,InputChoice2:=Close) when (LocalYear("&B10&")="&$I$19&" and LocalMonth("&B10&")="&$K$19&" and LocalDay("&B10&")="&$M$19&")", "Bar", "", "Close",$Q$19,, "all","", "","True","T")) -> 84.45348492 | R10: =IF(B10="","",RTD("cqg.rtd",,"StudyData", "Correlation("&B10&","&$R$4&",Period:="&$O$19&",InputChoice1:=Close,InputChoice2:=Close) when (LocalYear("&B10&")="&$I$19&" and LocalMonth("&B10&")="&$K$19&" and LocalDay("&B10&")="&$M$19&")", "Bar", "", "Close",$Q$19,, "all","", "","True","T")) -> -33.16863494 | S10: =IF(B10="","",RTD("cqg.rtd",,"StudyData", "Correlation("&B10&","&$S$4&",Period:="&$O$19&",InputChoice1:=Close,InputChoice2:=Close) when (LocalYear("&B10&")="&$I$19&" and LocalMonth("&B10&")="&$K$19&" and LocalDay("&B10&")="&$M$19&")", "Bar", "", "Close",$Q$19,, "all","", "","True","T")) -> 50.78031394 | T10: =IF(B10="","",RTD("cqg.rtd",,"StudyData", "Correlation("&B10&","&$T$4&",Period:="&$O$19&",InputChoice1:=Close,InputChoice2:=Close) when (LocalYear("&B10&")="&$I$19&" and LocalMonth("&B10&")="&$K$19&" and LocalDay("&B10&")="&$M$19&")", "Bar", "", "Close",$Q$19,, "all","", "","True","T")) -> 84.19625227 | U10: =IF(B10="","",RTD("cqg.rtd",,"StudyData", "Correlation("&B10&","&$U$4&",Period:="&$O$19&",InputChoice1:=Close,InputChoice2:=Close) when (LocalYear("&B10&")="&$I$19&" and LocalMonth("&B10&")="&$K$19&" and LocalDay("&B10&")="&$M$19&")", "Bar", "", "Close",$Q$19,, "all","", "","True","T")) -> -82.7023459
B11: HOE | C11: =IF(B11="","",RTD("cqg.rtd", ,"ContractData",B11, "LastQuoteToday",, "T")) -> 1.5461 | D11: =IF(B11="","",RTD("cqg.rtd", ,"ContractData",B11, "NetLastQuoteToday",, "T")) -> 0.0156 | E11: =IF(B11="","",IF(ISERROR(RTD("cqg.rtd",,"ContractData",B11,"PerCentNetLastTrade",,"T")/100),"",RTD("cqg.rtd",,"ContractData",B11,"PerCentNetLastTrade",,"T")/100)) -> 0.01038876184 | G11: HOE | H11: =IF(B11="","",RTD("cqg.rtd",,"StudyData", "Correlation("&B11&","&$H$4&",Period:="&$O$19&",InputChoice1:=Close,InputChoice2:=Close) when (LocalYear("&B11&")="&$I$19&" and LocalMonth("&B11&")="&$K$19&" and LocalDay("&B11&")="&$M$19&")", "Bar", "", "Close",$Q$19,, "all","", "","True","T")) -> 7.85170767 | I11: =IF(B11="","",RTD("cqg.rtd",,"StudyData", "Correlation("&B11&","&$I$4&",Period:="&$O$19&",InputChoice1:=Close,InputChoice2:=Close) when (LocalYear("&B11&")="&$I$19&" and LocalMonth("&B11&")="&$K$19&" and LocalDay("&B11&")="&$M$19&")", "Bar", "", "Close",$Q$19,, "all","", "","True","T")) -> -21.05044552 | J11: =IF(B11="","",RTD("cqg.rtd",,"StudyData", "Correlation("&B11&","&$J$4&",Period:="&$O$19&",InputChoice1:=Close,InputChoice2:=Close) when (LocalYear("&B11&")="&$I$19&" and LocalMonth("&B11&")="&$K$19&" and LocalDay("&B11&")="&$M$19&")", "Bar", "", "Close",$Q$19,, "all","", "","True","T")) -> 54.53811763 | K11: =IF(B11="","",RTD("cqg.rtd",,"StudyData", "Correlation("&B11&","&$K$4&",Period:="&$O$19&",InputChoice1:=Close,InputChoice2:=Close) when (LocalYear("&B11&")="&$I$19&" and LocalMonth("&B11&")="&$K$19&" and LocalDay("&B11&")="&$M$19&")", "Bar", "", "Close",$Q$19,, "all","", "","True","T")) -> -77.65145232 | L11: =IF(B11="","",RTD("cqg.rtd",,"StudyData", "Correlation("&B11&","&$L$4&",Period:="&$O$19&",InputChoice1:=Close,InputChoice2:=Close) when (LocalYear("&B11&")="&$I$19&" and LocalMonth("&B11&")="&$K$19&" and LocalDay("&B11&")="&$M$19&")", "Bar", "", "Close",$Q$19,, "all","", "","True","T")) -> -79.0037952 | M11: =IF(B11="","",RTD("cqg.rtd",,"StudyData", "Correlation("&B11&","&$M$4&",Period:="&$O$19&",InputChoice1:=Close,InputChoice2:=Close) when (LocalYear("&B11&")="&$I$19&" and LocalMonth("&B11&")="&$K$19&" and LocalDay("&B11&")="&$M$19&")", "Bar", "", "Close",$Q$19,, "all","", "","True","T")) -> 88.85763042 | O11: =IF(B11="","",RTD("cqg.rtd",,"StudyData", "Correlation("&B11&","&$O$4&",Period:="&$O$19&",InputChoice1:=Close,InputChoice2:=Close) when (LocalYear("&B11&")="&$I$19&" and LocalMonth("&B11&")="&$K$19&" and LocalDay("&B11&")="&$M$19&")", "Bar", "", "Close",$Q$19,, "all","", "","True","T")) -> 93.7848351 | P11: =IF(B11="","",RTD("cqg.rtd",,"StudyData", "Correlation("&B11&","&$P$4&",Period:="&$O$19&",InputChoice1:=Close,InputChoice2:=Close) when (LocalYear("&B11&")="&$I$19&" and LocalMonth("&B11&")="&$K$19&" and LocalDay("&B11&")="&$M$19&")", "Bar", "", "Close",$Q$19,, "all","", "","True","T")) -> 64.69165955 | Q11: =IF(B11="","",RTD("cqg.rtd",,"StudyData", "Correlation("&B11&","&$Q$4&",Period:="&$O$19&",InputChoice1:=Close,InputChoice2:=Close) when (LocalYear("&B11&")="&$I$19&" and LocalMonth("&B11&")="&$K$19&" and LocalDay("&B11&")="&$M$19&")", "Bar", "", "Close",$Q$19,, "all","", "","True","T")) -> 98.82735045 | R11: =IF(B11="","",RTD("cqg.rtd",,"StudyData", "Correlation("&B11&","&$R$4&",Period:="&$O$19&",InputChoice1:=Close,InputChoice2:=Close) when (LocalYear("&B11&")="&$I$19&" and LocalMonth("&B11&")="&$K$19&" and LocalDay("&B11&")="&$M$19&")", "Bar", "", "Close",$Q$19,, "all","", "","True","T")) -> -39.33268309 | S11: =IF(B11="","",RTD("cqg.rtd",,"StudyData", "Correlation("&B11&","&$S$4&",Period:="&$O$19&",InputChoice1:=Close,InputChoice2:=Close) when (LocalYear("&B11&")="&$I$19&" and LocalMonth("&B11&")="&$K$19&" and LocalDay("&B11&")="&$M$19&")", "Bar", "", "Close",$Q$19,, "all","", "","True","T")) -> 48.75936906 | T11: =IF(B11="","",RTD("cqg.rtd",,"StudyData", "Correlation("&B11&","&$T$4&",Period:="&$O$19&",InputChoice1:=Close,InputChoice2:=Close) when (LocalYear("&B11&")="&$I$19&" and LocalMonth("&B11&")="&$K$19&" and LocalDay("&B11&")="&$M$19&")", "Bar", "", "Close",$Q$19,, "all","", "","True","T")) -> 91.16422269 | U11: =IF(B11="","",RTD("cqg.rtd",,"StudyData", "Correlation("&B11&","&$U$4&",Period:="&$O$19&",InputChoice1:=Close,InputChoice2:=Close) when (LocalYear("&B11&")="&$I$19&" and LocalMonth("&B11&")="&$K$19&" and LocalDay("&B11&")="&$M$19&")", "Bar", "", "Close",$Q$19,, "all","", "","True","T")) -> -89.961672
B12: RBE | C12: =IF(B12="","",RTD("cqg.rtd", ,"ContractData",B12, "LastQuoteToday",, "T")) -> 1.693 | D12: =IF(B12="","",RTD("cqg.rtd", ,"ContractData",B12, "NetLastQuoteToday",, "T")) -> 0.0185 | E12: =IF(B12="","",IF(ISERROR(RTD("cqg.rtd",,"ContractData",B12,"PerCentNetLastTrade",,"T")/100),"",RTD("cqg.rtd",,"ContractData",B12,"PerCentNetLastTrade",,"T")/100)) -> 0.01104807405 | G12: RBE | H12: =IF(B12="","",RTD("cqg.rtd",,"StudyData", "Correlation("&B12&","&$H$4&",Period:="&$O$19&",InputChoice1:=Close,InputChoice2:=Close) when (LocalYear("&B12&")="&$I$19&" and LocalMonth("&B12&")="&$K$19&" and LocalDay("&B12&")="&$M$19&")", "Bar", "", "Close",$Q$19,, "all","", "","True","T")) -> 9.88757887 | I12: =IF(B12="","",RTD("cqg.rtd",,"StudyData", "Correlation("&B12&","&$I$4&",Period:="&$O$19&",InputChoice1:=Close,InputChoice2:=Close) when (LocalYear("&B12&")="&$I$19&" and LocalMonth("&B12&")="&$K$19&" and LocalDay("&B12&")="&$M$19&")", "Bar", "", "Close",$Q$19,, "all","", "","True","T")) -> -9.5246273 | J12: =IF(B12="","",RTD("cqg.rtd",,"StudyData", "Correlation("&B12&","&$J$4&",Period:="&$O$19&",InputChoice1:=Close,InputChoice2:=Close) when (LocalYear("&B12&")="&$I$19&" and LocalMonth("&B12&")="&$K$19&" and LocalDay("&B12&")="&$M$19&")", "Bar", "", "Close",$Q$19,, "all","", "","True","T")) -> 32.95828998 | K12: =IF(B12="","",RTD("cqg.rtd",,"StudyData", "Correlation("&B12&","&$K$4&",Period:="&$O$19&",InputChoice1:=Close,InputChoice2:=Close) when (LocalYear("&B12&")="&$I$19&" and LocalMonth("&B12&")="&$K$19&" and LocalDay("&B12&")="&$M$19&")", "Bar", "", "Close",$Q$19,, "all","", "","True","T")) -> -79.12223466 | L12: =IF(B12="","",RTD("cqg.rtd",,"StudyData", "Correlation("&B12&","&$L$4&",Period:="&$O$19&",InputChoice1:=Close,InputChoice2:=Close) when (LocalYear("&B12&")="&$I$19&" and LocalMonth("&B12&")="&$K$19&" and LocalDay("&B12&")="&$M$19&")", "Bar", "", "Close",$Q$19,, "all","", "","True","T")) -> -80.98180519 | M12: =IF(B12="","",RTD("cqg.rtd",,"StudyData", "Correlation("&B12&","&$M$4&",Period:="&$O$19&",InputChoice1:=Close,InputChoice2:=Close) when (LocalYear("&B12&")="&$I$19&" and LocalMonth("&B12&")="&$K$19&" and LocalDay("&B12&")="&$M$19&")", "Bar", "", "Close",$Q$19,, "all","", "","True","T")) -> 71.68533127 | N12: =IF(B12="","",RTD("cqg.rtd",,"StudyData", "Correlation("&B12&","&$N$4&",Period:="&$O$19&",InputChoice1:=Close,InputChoice2:=Close) when (LocalYear("&B12&")="&$I$19&" and LocalMonth("&B12&")="&$K$19&" and LocalDay("&B12&")="&$M$19&")", "Bar", "", "Close",$Q$19,, "all","", "","True","T")) -> 93.7848351 | P12: =IF(B12="","",RTD("cqg.rtd",,"StudyData", "Correlation("&B12&","&$P$4&",Period:="&$O$19&",InputChoice1:=Close,InputChoice2:=Close) when (LocalYear("&B12&")="&$I$19&" and LocalMonth("&B12&")="&$K$19&" and LocalDay("&B12&")="&$M$19&")", "Bar", "", "Close",$Q$19,, "all","", "","True","T")) -> 43.08638595 | Q12: =IF(B12="","",RTD("cqg.rtd",,"StudyData", "Correlation("&B12&","&$Q$4&",Period:="&$O$19&",InputChoice1:=Close,InputChoice2:=Close) when (LocalYear("&B12&")="&$I$19&" and LocalMonth("&B12&")="&$K$19&" and LocalDay("&B12&")="&$M$19&")", "Bar", "", "Close",$Q$19,, "all","", "","True","T")) -> 96.33028708 | R12: =IF(B12="","",RTD("cqg.rtd",,"StudyData", "Correlation("&B12&","&$R$4&",Period:="&$O$19&",InputChoice1:=Close,InputChoice2:=Close) when (LocalYear("&B12&")="&$I$19&" and LocalMonth("&B12&")="&$K$19&" and LocalDay("&B12&")="&$M$19&")", "Bar", "", "Close",$Q$19,, "all","", "","True","T")) -> -34.98983051 | S12: =IF(B12="","",RTD("cqg.rtd",,"StudyData", "Correlation("&B12&","&$S$4&",Period:="&$O$19&",InputChoice1:=Close,InputChoice2:=Close) when (LocalYear("&B12&")="&$I$19&" and LocalMonth("&B12&")="&$K$19&" and LocalDay("&B12&")="&$M$19&")", "Bar", "", "Close",$Q$19,, "all","", "","True","T")) -> 40.84612369 | T12: =IF(B12="","",RTD("cqg.rtd",,"StudyData", "Correlation("&B12&","&$T$4&",Period:="&$O$19&",InputChoice1:=Close,InputChoice2:=Close) when (LocalYear("&B12&")="&$I$19&" and LocalMonth("&B12&")="&$K$19&" and LocalDay("&B12&")="&$M$19&")", "Bar", "", "Close",$Q$19,, "all","", "","True","T")) -> 81.17807241 | U12: =IF(B12="","",RTD("cqg.rtd",,"StudyData", "Correlation("&B12&","&$U$4&",Period:="&$O$19&",InputChoice1:=Close,InputChoice2:=Close) when (LocalYear("&B12&")="&$I$19&" and LocalMonth("&B12&")="&$K$19&" and LocalDay("&B12&")="&$M$19&")", "Bar", "", "Close",$Q$19,, "all","", "","True","T")) -> -81.11806022
B13: NGE | C13: =IF(B13="","",RTD("cqg.rtd", ,"ContractData",B13, "LastQuoteToday",, "T")) -> 2.79 | D13: =IF(B13="","",RTD("cqg.rtd", ,"ContractData",B13, "NetLastQuoteToday",, "T")) -> 0.042 | E13: =IF(B13="","",IF(ISERROR(RTD("cqg.rtd",,"ContractData",B13,"PerCentNetLastTrade",,"T")/100),"",RTD("cqg.rtd",,"ContractData",B13,"PerCentNetLastTrade",,"T")/100)) -> 0.01528384279 | G13: NGE | H13: =IF(B13="","",RTD("cqg.rtd",,"StudyData", "Correlation("&B13&","&$H$4&",Period:="&$O$19&",InputChoice1:=Close,InputChoice2:=Close) when (LocalYear("&B13&")="&$I$19&" and LocalMonth("&B13&")="&$K$19&" and LocalDay("&B13&")="&$M$19&")", "Bar", "", "Close",$Q$19,, "all","", "","True","T")) -> -27.84622017 | I13: =IF(B13="","",RTD("cqg.rtd",,"StudyData", "Correlation("&B13&","&$I$4&",Period:="&$O$19&",InputChoice1:=Close,InputChoice2:=Close) when (LocalYear("&B13&")="&$I$19&" and LocalMonth("&B13&")="&$K$19&" and LocalDay("&B13&")="&$M$19&")", "Bar", "", "Close",$Q$19,, "all","", "","True","T")) -> -56.42931779 | J13: =IF(B13="","",RTD("cqg.rtd",,"StudyData", "Correlation("&B13&","&$J$4&",Period:="&$O$19&",InputChoice1:=Close,InputChoice2:=Close) when (LocalYear("&B13&")="&$I$19&" and LocalMonth("&B13&")="&$K$19&" and LocalDay("&B13&")="&$M$19&")", "Bar", "", "Close",$Q$19,, "all","", "","True","T")) -> 71.70154968 | K13: =IF(B13="","",RTD("cqg.rtd",,"StudyData", "Correlation("&B13&","&$K$4&",Period:="&$O$19&",InputChoice1:=Close,InputChoice2:=Close) when (LocalYear("&B13&")="&$I$19&" and LocalMonth("&B13&")="&$K$19&" and LocalDay("&B13&")="&$M$19&")", "Bar", "", "Close",$Q$19,, "all","", "","True","T")) -> -44.3539616 | L13: =IF(B13="","",RTD("cqg.rtd",,"StudyData", "Correlation("&B13&","&$L$4&",Period:="&$O$19&",InputChoice1:=Close,InputChoice2:=Close) when (LocalYear("&B13&")="&$I$19&" and LocalMonth("&B13&")="&$K$19&" and LocalDay("&B13&")="&$M$19&")", "Bar", "", "Close",$Q$19,, "all","", "","True","T")) -> -48.32302274 | M13: =IF(B13="","",RTD("cqg.rtd",,"StudyData", "Correlation("&B13&","&$M$4&",Period:="&$O$19&",InputChoice1:=Close,InputChoice2:=Close) when (LocalYear("&B13&")="&$I$19&" and LocalMonth("&B13&")="&$K$19&" and LocalDay("&B13&")="&$M$19&")", "Bar", "", "Close",$Q$19,, "all","", "","True","T")) -> 79.88455179 | N13: =IF(B13="","",RTD("cqg.rtd",,"StudyData", "Correlation("&B13&","&$N$4&",Period:="&$O$19&",InputChoice1:=Close,InputChoice2:=Close) when (LocalYear("&B13&")="&$I$19&" and LocalMonth("&B13&")="&$K$19&" and LocalDay("&B13&")="&$M$19&")", "Bar", "", "Close",$Q$19,, "all","", "","True","T")) -> 64.69165955 | O13: =IF(B13="","",RTD("cqg.rtd",,"StudyData", "Correlation("&B13&","&$O$4&",Period:="&$O$19&",InputChoice1:=Close,InputChoice2:=Close) when (LocalYear("&B13&")="&$I$19&" and LocalMonth("&B13&")="&$K$19&" and LocalDay("&B13&")="&$M$19&")", "Bar", "", "Close",$Q$19,, "all","", "","True","T")) -> 43.08638595 | Q13: =IF(B13="","",RTD("cqg.rtd",,"StudyData", "Correlation("&B13&","&$Q$4&",Period:="&$O$19&",InputChoice1:=Close,InputChoice2:=Close) when (LocalYear("&B13&")="&$I$19&" and LocalMonth("&B13&")="&$K$19&" and LocalDay("&B13&")="&$M$19&")", "Bar", "", "Close",$Q$19,, "all","", "","True","T")) -> 55.34462895 | R13: =IF(B13="","",RTD("cqg.rtd",,"StudyData", "Correlation("&B13&","&$R$4&",Period:="&$O$19&",InputChoice1:=Close,InputChoice2:=Close) when (LocalYear("&B13&")="&$I$19&" and LocalMonth("&B13&")="&$K$19&" and LocalDay("&B13&")="&$M$19&")", "Bar", "", "Close",$Q$19,, "all","", "","True","T")) -> -46.79724133 | S13: =IF(B13="","",RTD("cqg.rtd",,"StudyData", "Correlation("&B13&","&$S$4&",Period:="&$O$19&",InputChoice1:=Close,InputChoice2:=Close) when (LocalYear("&B13&")="&$I$19&" and LocalMonth("&B13&")="&$K$19&" and LocalDay("&B13&")="&$M$19&")", "Bar", "", "Close",$Q$19,, "all","", "","True","T")) -> 35.88491103 | T13: =IF(B13="","",RTD("cqg.rtd",,"StudyData", "Correlation("&B13&","&$T$4&",Period:="&$O$19&",InputChoice1:=Close,InputChoice2:=Close) when (LocalYear("&B13&")="&$I$19&" and LocalMonth("&B13&")="&$K$19&" and LocalDay("&B13&")="&$M$19&")", "Bar", "", "Close",$Q$19,, "all","", "","True","T")) -> 69.55982673 | U13: =IF(B13="","",RTD("cqg.rtd",,"StudyData", "Correlation("&B13&","&$U$4&",Period:="&$O$19&",InputChoice1:=Close,InputChoice2:=Close) when (LocalYear("&B13&")="&$I$19&" and LocalMonth("&B13&")="&$K$19&" and LocalDay("&B13&")="&$M$19&")", "Bar", "", "Close",$Q$19,, "all","", "","True","T")) -> -66.90146835
B14: QO | C14: =IF(B14="","",RTD("cqg.rtd", ,"ContractData",B14, "LastQuoteToday",, "T")) -> 50.01 | D14: =IF(B14="","",RTD("cqg.rtd", ,"ContractData",B14, "NetLastQuoteToday",, "T")) -> 0.49 | E14: =IF(B14="","",IF(ISERROR(RTD("cqg.rtd",,"ContractData",B14,"PerCentNetLastTrade",,"T")/100),"",RTD("cqg.rtd",,"ContractData",B14,"PerCentNetLastTrade",,"T")/100)) -> 0.01009693053 | G14: QO | H14: =IF(B14="","",RTD("cqg.rtd",,"StudyData", "Correlation("&B14&","&$H$4&",Period:="&$O$19&",InputChoice1:=Close,InputChoice2:=Close) when (LocalYear("&B14&")="&$I$19&" and LocalMonth("&B14&")="&$K$19&" and LocalDay("&B14&")="&$M$19&")", "Bar", "", "Close",$Q$19,, "all","", "","True","T")) -> 13.74635696 | I14: =IF(B14="","",RTD("cqg.rtd",,"StudyData", "Correlation("&B14&","&$I$4&",Period:="&$O$19&",InputChoice1:=Close,InputChoice2:=Close) when (LocalYear("&B14&")="&$I$19&" and LocalMonth("&B14&")="&$K$19&" and LocalDay("&B14&")="&$M$19&")", "Bar", "", "Close",$Q$19,, "all","", "","True","T")) -> -11.6550954 | J14: =IF(B14="","",RTD("cqg.rtd",,"StudyData", "Correlation("&B14&","&$J$4&",Period:="&$O$19&",InputChoice1:=Close,InputChoice2:=Close) when (LocalYear("&B14&")="&$I$19&" and LocalMonth("&B14&")="&$K$19&" and LocalDay("&B14&")="&$M$19&")", "Bar", "", "Close",$Q$19,, "all","", "","True","T")) -> 45.63594862 | K14: =IF(B14="","",RTD("cqg.rtd",,"StudyData", "Correlation("&B14&","&$K$4&",Period:="&$O$19&",InputChoice1:=Close,InputChoice2:=Close) when (LocalYear("&B14&")="&$I$19&" and LocalMonth("&B14&")="&$K$19&" and LocalDay("&B14&")="&$M$19&")", "Bar", "", "Close",$Q$19,, "all","", "","True","T")) -> -76.23079915 | L14: =IF(B14="","",RTD("cqg.rtd",,"StudyData", "Correlation("&B14&","&$L$4&",Period:="&$O$19&",InputChoice1:=Close,InputChoice2:=Close) when (LocalYear("&B14&")="&$I$19&" and LocalMonth("&B14&")="&$K$19&" and LocalDay("&B14&")="&$M$19&")", "Bar", "", "Close",$Q$19,, "all","", "","True","T")) -> -76.69464145 | M14: =IF(B14="","",RTD("cqg.rtd",,"StudyData", "Correlation("&B14&","&$M$4&",Period:="&$O$19&",InputChoice1:=Close,InputChoice2:=Close) when (LocalYear("&B14&")="&$I$19&" and LocalMonth("&B14&")="&$K$19&" and LocalDay("&B14&")="&$M$19&")", "Bar", "", "Close",$Q$19,, "all","", "","True","T")) -> 84.45348492 | N14: =IF(B14="","",RTD("cqg.rtd",,"StudyData", "Correlation("&B14&","&$N$4&",Period:="&$O$19&",InputChoice1:=Close,InputChoice2:=Close) when (LocalYear("&B14&")="&$I$19&" and LocalMonth("&B14&")="&$K$19&" and LocalDay("&B14&")="&$M$19&")", "Bar", "", "Close",$Q$19,, "all","", "","True","T")) -> 98.82735045 | O14: =IF(B14="","",RTD("cqg.rtd",,"StudyData", "Correlation("&B14&","&$O$4&",Period:="&$O$19&",InputChoice1:=Close,InputChoice2:=Close) when (LocalYear("&B14&")="&$I$19&" and LocalMonth("&B14&")="&$K$19&" and LocalDay("&B14&")="&$M$19&")", "Bar", "", "Close",$Q$19,, "all","", "","True","T")) -> 96.33028708 | P14: =IF(B14="","",RTD("cqg.rtd",,"StudyData", "Correlation("&B14&","&$P$4&",Period:="&$O$19&",InputChoice1:=Close,InputChoice2:=Close) when (LocalYear("&B14&")="&$I$19&" and LocalMonth("&B14&")="&$K$19&" and LocalDay("&B14&")="&$M$19&")", "Bar", "", "Close",$Q$19,, "all","", "","True","T")) -> 55.34462895 | R14: =IF(B14="","",RTD("cqg.rtd",,"StudyData", "Correlation("&B14&","&$R$4&",Period:="&$O$19&",InputChoice1:=Close,InputChoice2:=Close) when (LocalYear("&B14&")="&$I$19&" and LocalMonth("&B14&")="&$K$19&" and LocalDay("&B14&")="&$M$19&")", "Bar", "", "Close",$Q$19,, "all","", "","True","T")) -> -36.78361111 | S14: =IF(B14="","",RTD("cqg.rtd",,"StudyData", "Correlation("&B14&","&$S$4&",Period:="&$O$19&",InputChoice1:=Close,InputChoice2:=Close) when (LocalYear("&B14&")="&$I$19&" and LocalMonth("&B14&")="&$K$19&" and LocalDay("&B14&")="&$M$19&")", "Bar", "", "Close",$Q$19,, "all","", "","True","T")) -> 45.4761926 | T14: =IF(B14="","",RTD("cqg.rtd",,"StudyData", "Correlation("&B14&","&$T$4&",Period:="&$O$19&",InputChoice1:=Close,InputChoice2:=Close) when (LocalYear("&B14&")="&$I$19&" and LocalMonth("&B14&")="&$K$19&" and LocalDay("&B14&")="&$M$19&")", "Bar", "", "Close",$Q$19,, "all","", "","True","T")) -> 88.46383932 | U14: =IF(B14="","",RTD("cqg.rtd",,"StudyData", "Correlation("&B14&","&$U$4&",Period:="&$O$19&",InputChoice1:=Close,InputChoice2:=Close) when (LocalYear("&B14&")="&$I$19&" and LocalMonth("&B14&")="&$K$19&" and LocalDay("&B14&")="&$M$19&")", "Bar", "", "Close",$Q$19,, "all","", "","True","T")) -> -87.60914232
B15: GCE | C15: =IF(B15="","",RTD("cqg.rtd", ,"ContractData",B15, "LastQuoteToday",, "T")) -> 1091.9 | D15: =IF(B15="","",RTD("cqg.rtd", ,"ContractData",B15, "NetLastQuoteToday",, "T")) -> 2.5 | E15: =IF(B15="","",IF(ISERROR(RTD("cqg.rtd",,"ContractData",B15,"PerCentNetLastTrade",,"T")/100),"",RTD("cqg.rtd",,"ContractData",B15,"PerCentNetLastTrade",,"T")/100)) -> 0.002294841197 | G15: GCE | H15: =IF(B15="","",RTD("cqg.rtd",,"StudyData", "Correlation("&B15&","&$H$4&",Period:="&$O$19&",InputChoice1:=Close,InputChoice2:=Close) when (LocalYear("&B15&")="&$I$19&" and LocalMonth("&B15&")="&$K$19&" and LocalDay("&B15&")="&$M$19&")", "Bar", "", "Close",$Q$19,, "all","", "","True","T")) -> 26.16330836 | I15: =IF(B15="","",RTD("cqg.rtd",,"StudyData", "Correlation("&B15&","&$I$4&",Period:="&$O$19&",InputChoice1:=Close,InputChoice2:=Close) when (LocalYear("&B15&")="&$I$19&" and LocalMonth("&B15&")="&$K$19&" and LocalDay("&B15&")="&$M$19&")", "Bar", "", "Close",$Q$19,, "all","", "","True","T")) -> 36.93620755 | J15: =IF(B15="","",RTD("cqg.rtd",,"StudyData", "Correlation("&B15&","&$J$4&",Period:="&$O$19&",InputChoice1:=Close,InputChoice2:=Close) when (LocalYear("&B15&")="&$I$19&" and LocalMonth("&B15&")="&$K$19&" and LocalDay("&B15&")="&$M$19&")", "Bar", "", "Close",$Q$19,, "all","", "","True","T")) -> -29.45794469 | K15: =IF(B15="","",RTD("cqg.rtd",,"StudyData", "Correlation("&B15&","&$K$4&",Period:="&$O$19&",InputChoice1:=Close,InputChoice2:=Close) when (LocalYear("&B15&")="&$I$19&" and LocalMonth("&B15&")="&$K$19&" and LocalDay("&B15&")="&$M$19&")", "Bar", "", "Close",$Q$19,, "all","", "","True","T")) -> 18.7597148 | L15: =IF(B15="","",RTD("cqg.rtd",,"StudyData", "Correlation("&B15&","&$L$4&",Period:="&$O$19&",InputChoice1:=Close,InputChoice2:=Close) when (LocalYear("&B15&")="&$I$19&" and LocalMonth("&B15&")="&$K$19&" and LocalDay("&B15&")="&$M$19&")", "Bar", "", "Close",$Q$19,, "all","", "","True","T")) -> 34.35054602 | M15: =IF(B15="","",RTD("cqg.rtd",,"StudyData", "Correlation("&B15&","&$M$4&",Period:="&$O$19&",InputChoice1:=Close,InputChoice2:=Close) when (LocalYear("&B15&")="&$I$19&" and LocalMonth("&B15&")="&$K$19&" and LocalDay("&B15&")="&$M$19&")", "Bar", "", "Close",$Q$19,, "all","", "","True","T")) -> -33.16863495 | N15: =IF(B15="","",RTD("cqg.rtd",,"StudyData", "Correlation("&B15&","&$N$4&",Period:="&$O$19&",InputChoice1:=Close,InputChoice2:=Close) when (LocalYear("&B15&")="&$I$19&" and LocalMonth("&B15&")="&$K$19&" and LocalDay("&B15&")="&$M$19&")", "Bar", "", "Close",$Q$19,, "all","", "","True","T")) -> -39.33268494 | O15: =IF(B15="","",RTD("cqg.rtd",,"StudyData", "Correlation("&B15&","&$O$4&",Period:="&$O$19&",InputChoice1:=Close,InputChoice2:=Close) when (LocalYear("&B15&")="&$I$19&" and LocalMonth("&B15&")="&$K$19&" and LocalDay("&B15&")="&$M$19&")", "Bar", "", "Close",$Q$19,, "all","", "","True","T")) -> -34.98983113 | P15: =IF(B15="","",RTD("cqg.rtd",,"StudyData", "Correlation("&B15&","&$P$4&",Period:="&$O$19&",InputChoice1:=Close,InputChoice2:=Close) when (LocalYear("&B15&")="&$I$19&" and LocalMonth("&B15&")="&$K$19&" and LocalDay("&B15&")="&$M$19&")", "Bar", "", "Close",$Q$19,, "all","", "","True","T")) -> -46.79724124 | Q15: =IF(B15="","",RTD("cqg.rtd",,"StudyData", "Correlation("&B15&","&$Q$4&",Period:="&$O$19&",InputChoice1:=Close,InputChoice2:=Close) when (LocalYear("&B15&")="&$I$19&" and LocalMonth("&B15&")="&$K$19&" and LocalDay("&B15&")="&$M$19&")", "Bar", "", "Close",$Q$19,, "all","", "","True","T")) -> -36.78361111 | S15: =IF(B15="","",RTD("cqg.rtd",,"StudyData", "Correlation("&B15&","&$S$4&",Period:="&$O$19&",InputChoice1:=Close,InputChoice2:=Close) when (LocalYear("&B15&")="&$I$19&" and LocalMonth("&B15&")="&$K$19&" and LocalDay("&B15&")="&$M$19&")", "Bar", "", "Close",$Q$19,, "all","", "","True","T")) -> 48.35039224 | T15: =IF(B15="","",RTD("cqg.rtd",,"StudyData", "Correlation("&B15&","&$T$4&",Period:="&$O$19&",InputChoice1:=Close,InputChoice2:=Close) when (LocalYear("&B15&")="&$I$19&" and LocalMonth("&B15&")="&$K$19&" and LocalDay("&B15&")="&$M$19&")", "Bar", "", "Close",$Q$19,, "all","", "","True","T")) -> -13.66811933 | U15: =IF(B15="","",RTD("cqg.rtd",,"StudyData", "Correlation("&B15&","&$U$4&",Period:="&$O$19&",InputChoice1:=Close,InputChoice2:=Close) when (LocalYear("&B15&")="&$I$19&" and LocalMonth("&B15&")="&$K$19&" and LocalDay("&B15&")="&$M$19&")", "Bar", "", "Close",$Q$19,, "all","", "","True","T")) -> 33.67111537
B16: SIE | C16: =IF(B16="","",RTD("cqg.rtd", ,"ContractData",B16, "LastQuoteToday",, "T")) -> 14.595 | D16: =IF(B16="","",RTD("cqg.rtd", ,"ContractData",B16, "NetLastQuoteToday",, "T")) -> 0.08 | E16: =IF(B16="","",IF(ISERROR(RTD("cqg.rtd",,"ContractData",B16,"PerCentNetLastTrade",,"T")/100),"",RTD("cqg.rtd",,"ContractData",B16,"PerCentNetLastTrade",,"T")/100)) -> 0.005511539786 | G16: SIE | H16: =IF(B16="","",RTD("cqg.rtd",,"StudyData", "Correlation("&B16&","&$H$4&",Period:="&$O$19&",InputChoice1:=Close,InputChoice2:=Close) when (LocalYear("&B16&")="&$I$19&" and LocalMonth("&B16&")="&$K$19&" and LocalDay("&B16&")="&$M$19&")", "Bar", "", "Close",$Q$19,, "all","", "","True","T")) -> 17.23862065 | I16: =IF(B16="","",RTD("cqg.rtd",,"StudyData", "Correlation("&B16&","&$I$4&",Period:="&$O$19&",InputChoice1:=Close,InputChoice2:=Close) when (LocalYear("&B16&")="&$I$19&" and LocalMonth("&B16&")="&$K$19&" and LocalDay("&B16&")="&$M$19&")", "Bar", "", "Close",$Q$19,, "all","", "","True","T")) -> 2.42191511 | J16: =IF(B16="","",RTD("cqg.rtd",,"StudyData", "Correlation("&B16&","&$J$4&",Period:="&$O$19&",InputChoice1:=Close,InputChoice2:=Close) when (LocalYear("&B16&")="&$I$19&" and LocalMonth("&B16&")="&$K$19&" and LocalDay("&B16&")="&$M$19&")", "Bar", "", "Close",$Q$19,, "all","", "","True","T")) -> 32.09498855 | K16: =IF(B16="","",RTD("cqg.rtd",,"StudyData", "Correlation("&B16&","&$K$4&",Period:="&$O$19&",InputChoice1:=Close,InputChoice2:=Close) when (LocalYear("&B16&")="&$I$19&" and LocalMonth("&B16&")="&$K$19&" and LocalDay("&B16&")="&$M$19&")", "Bar", "", "Close",$Q$19,, "all","", "","True","T")) -> -64.06965947 | L16: =IF(B16="","",RTD("cqg.rtd",,"StudyData", "Correlation("&B16&","&$L$4&",Period:="&$O$19&",InputChoice1:=Close,InputChoice2:=Close) when (LocalYear("&B16&")="&$I$19&" and LocalMonth("&B16&")="&$K$19&" and LocalDay("&B16&")="&$M$19&")", "Bar", "", "Close",$Q$19,, "all","", "","True","T")) -> -47.22971546 | M16: =IF(B16="","",RTD("cqg.rtd",,"StudyData", "Correlation("&B16&","&$M$4&",Period:="&$O$19&",InputChoice1:=Close,InputChoice2:=Close) when (LocalYear("&B16&")="&$I$19&" and LocalMonth("&B16&")="&$K$19&" and LocalDay("&B16&")="&$M$19&")", "Bar", "", "Close",$Q$19,, "all","", "","True","T")) -> 50.78031394 | N16: =IF(B16="","",RTD("cqg.rtd",,"StudyData", "Correlation("&B16&","&$N$4&",Period:="&$O$19&",InputChoice1:=Close,InputChoice2:=Close) when (LocalYear("&B16&")="&$I$19&" and LocalMonth("&B16&")="&$K$19&" and LocalDay("&B16&")="&$M$19&")", "Bar", "", "Close",$Q$19,, "all","", "","True","T")) -> 48.75936905 | O16: =IF(B16="","",RTD("cqg.rtd",,"StudyData", "Correlation("&B16&","&$O$4&",Period:="&$O$19&",InputChoice1:=Close,InputChoice2:=Close) when (LocalYear("&B16&")="&$I$19&" and LocalMonth("&B16&")="&$K$19&" and LocalDay("&B16&")="&$M$19&")", "Bar", "", "Close",$Q$19,, "all","", "","True","T")) -> 40.84612369 | P16: =IF(B16="","",RTD("cqg.rtd",,"StudyData", "Correlation("&B16&","&$P$4&",Period:="&$O$19&",InputChoice1:=Close,InputChoice2:=Close) when (LocalYear("&B16&")="&$I$19&" and LocalMonth("&B16&")="&$K$19&" and LocalDay("&B16&")="&$M$19&")", "Bar", "", "Close",$Q$19,, "all","", "","True","T")) -> 35.88491103 | Q16: =IF(B16="","",RTD("cqg.rtd",,"StudyData", "Correlation("&B16&","&$Q$4&",Period:="&$O$19&",InputChoice1:=Close,InputChoice2:=Close) when (LocalYear("&B16&")="&$I$19&" and LocalMonth("&B16&")="&$K$19&" and LocalDay("&B16&")="&$M$19&")", "Bar", "", "Close",$Q$19,, "all","", "","True","T")) -> 45.4761926 | R16: =IF(B16="","",RTD("cqg.rtd",,"StudyData", "Correlation("&B16&","&$R$4&",Period:="&$O$19&",InputChoice1:=Close,InputChoice2:=Close) when (LocalYear("&B16&")="&$I$19&" and LocalMonth("&B16&")="&$K$19&" and LocalDay("&B16&")="&$M$19&")", "Bar", "", "Close",$Q$19,, "all","", "","True","T")) -> 48.35039224 | T16: =IF(B16="","",RTD("cqg.rtd",,"StudyData", "Correlation("&B16&","&$T$4&",Period:="&$O$19&",InputChoice1:=Close,InputChoice2:=Close) when (LocalYear("&B16&")="&$I$19&" and LocalMonth("&B16&")="&$K$19&" and LocalDay("&B16&")="&$M$19&")", "Bar", "", "Close",$Q$19,, "all","", "","True","T")) -> 47.97148834 | U16: =IF(B16="","",RTD("cqg.rtd",,"StudyData", "Correlation("&B16&","&$U$4&",Period:="&$O$19&",InputChoice1:=Close,InputChoice2:=Close) when (LocalYear("&B16&")="&$I$19&" and LocalMonth("&B16&")="&$K$19&" and LocalDay("&B16&")="&$M$19&")", "Bar", "", "Close",$Q$19,, "all","", "","True","T")) -> -55.55150102
B17: EU6 | C17: =IF(B17="","",RTD("cqg.rtd", ,"ContractData",B17, "LastQuoteToday",, "T")) -> 1.0962 | D17: =IF(B17="","",RTD("cqg.rtd", ,"ContractData",B17, "NetLastQuoteToday",, "T")) -> 0.0008 | E17: =IF(B17="","",IF(ISERROR(RTD("cqg.rtd",,"ContractData",B17,"PerCentNetLastTrade",,"T")/100),"",RTD("cqg.rtd",,"ContractData",B17,"PerCentNetLastTrade",,"T")/100)) -> 0.0007303268213 | G17: EU6 | H17: =IF(B17="","",RTD("cqg.rtd",,"StudyData", "Correlation("&B17&","&$H$4&",Period:="&$O$19&",InputChoice1:=Close,InputChoice2:=Close) when (LocalYear("&B17&")="&$I$19&" and LocalMonth("&B17&")="&$K$19&" and LocalDay("&B17&")="&$M$19&")", "Bar", "", "Close",$Q$19,, "all","", "","True","T")) -> 13.74065806 | I17: =IF(B17="","",RTD("cqg.rtd",,"StudyData", "Correlation("&B17&","&$I$4&",Period:="&$O$19&",InputChoice1:=Close,InputChoice2:=Close) when (LocalYear("&B17&")="&$I$19&" and LocalMonth("&B17&")="&$K$19&" and LocalDay("&B17&")="&$M$19&")", "Bar", "", "Close",$Q$19,, "all","", "","True","T")) -> -11.70765804 | J17: =IF(B17="","",RTD("cqg.rtd",,"StudyData", "Correlation("&B17&","&$J$4&",Period:="&$O$19&",InputChoice1:=Close,InputChoice2:=Close) when (LocalYear("&B17&")="&$I$19&" and LocalMonth("&B17&")="&$K$19&" and LocalDay("&B17&")="&$M$19&")", "Bar", "", "Close",$Q$19,, "all","", "","True","T")) -> 53.18576556 | K17: =IF(B17="","",RTD("cqg.rtd",,"StudyData", "Correlation("&B17&","&$K$4&",Period:="&$O$19&",InputChoice1:=Close,InputChoice2:=Close) when (LocalYear("&B17&")="&$I$19&" and LocalMonth("&B17&")="&$K$19&" and LocalDay("&B17&")="&$M$19&")", "Bar", "", "Close",$Q$19,, "all","", "","True","T")) -> -77.06030525 | L17: =IF(B17="","",RTD("cqg.rtd",,"StudyData", "Correlation("&B17&","&$L$4&",Period:="&$O$19&",InputChoice1:=Close,InputChoice2:=Close) when (LocalYear("&B17&")="&$I$19&" and LocalMonth("&B17&")="&$K$19&" and LocalDay("&B17&")="&$M$19&")", "Bar", "", "Close",$Q$19,, "all","", "","True","T")) -> -84.83385757 | M17: =IF(B17="","",RTD("cqg.rtd",,"StudyData", "Correlation("&B17&","&$M$4&",Period:="&$O$19&",InputChoice1:=Close,InputChoice2:=Close) when (LocalYear("&B17&")="&$I$19&" and LocalMonth("&B17&")="&$K$19&" and LocalDay("&B17&")="&$M$19&")", "Bar", "", "Close",$Q$19,, "all","", "","True","T")) -> 84.19625227 | N17: =IF(B17="","",RTD("cqg.rtd",,"StudyData", "Correlation("&B17&","&$N$4&",Period:="&$O$19&",InputChoice1:=Close,InputChoice2:=Close) when (LocalYear("&B17&")="&$I$19&" and LocalMonth("&B17&")="&$K$19&" and LocalDay("&B17&")="&$M$19&")", "Bar", "", "Close",$Q$19,, "all","", "","True","T")) -> 91.16422269 | O17: =IF(B17="","",RTD("cqg.rtd",,"StudyData", "Correlation("&B17&","&$O$4&",Period:="&$O$19&",InputChoice1:=Close,InputChoice2:=Close) when (LocalYear("&B17&")="&$I$19&" and LocalMonth("&B17&")="&$K$19&" and LocalDay("&B17&")="&$M$19&")", "Bar", "", "Close",$Q$19,, "all","", "","True","T")) -> 81.17807241 | P17: =IF(B17="","",RTD("cqg.rtd",,"StudyData", "Correlation("&B17&","&$P$4&",Period:="&$O$19&",InputChoice1:=Close,InputChoice2:=Close) when (LocalYear("&B17&")="&$I$19&" and LocalMonth("&B17&")="&$K$19&" and LocalDay("&B17&")="&$M$19&")", "Bar", "", "Close",$Q$19,, "all","", "","True","T")) -> 69.55982673 | Q17: =IF(B17="","",RTD("cqg.rtd",,"StudyData", "Correlation("&B17&","&$Q$4&",Period:="&$O$19&",InputChoice1:=Close,InputChoice2:=Close) when (LocalYear("&B17&")="&$I$19&" and LocalMonth("&B17&")="&$K$19&" and LocalDay("&B17&")="&$M$19&")", "Bar", "", "Close",$Q$19,, "all","", "","True","T")) -> 88.46383932 | R17: =IF(B17="","",RTD("cqg.rtd",,"StudyData", "Correlation("&B17&","&$R$4&",Period:="&$O$19&",InputChoice1:=Close,InputChoice2:=Close) when (LocalYear("&B17&")="&$I$19&" and LocalMonth("&B17&")="&$K$19&" and LocalDay("&B17&")="&$M$19&")", "Bar", "", "Close",$Q$19,, "all","", "","True","T")) -> -13.66812014 | S17: =IF(B17="","",RTD("cqg.rtd",,"StudyData", "Correlation("&B17&","&$S$4&",Period:="&$O$19&",InputChoice1:=Close,InputChoice2:=Close) when (LocalYear("&B17&")="&$I$19&" and LocalMonth("&B17&")="&$K$19&" and LocalDay("&B17&")="&$M$19&")", "Bar", "", "Close",$Q$19,, "all","", "","True","T")) -> 47.97148834 | U17: =IF(B17="","",RTD("cqg.rtd",,"StudyData", "Correlation("&B17&","&$U$4&",Period:="&$O$19&",InputChoice1:=Close,InputChoice2:=Close) when (LocalYear("&B17&")="&$I$19&" and LocalMonth("&B17&")="&$K$19&" and LocalDay("&B17&")="&$M$19&")", "Bar", "", "Close",$Q$19,, "all","", "","True","T")) -> -99.18536793
B18: DXE | C18: =IF(B18="","",RTD("cqg.rtd", ,"ContractData",B18, "LastQuoteToday",, "T")) -> 97.52 | D18: =IF(B18="","",RTD("cqg.rtd", ,"ContractData",B18, "NetLastQuoteToday",, "T")) -> -0.096 | E18: =IF(B18="","",IF(ISERROR(RTD("cqg.rtd",,"ContractData",B18,"PerCentNetLastTrade",,"T")/100),"",RTD("cqg.rtd",,"ContractData",B18,"PerCentNetLastTrade",,"T")/100)) -> -0.0008810031142 | G18: DXE | H18: =IF(B18="","",RTD("cqg.rtd",,"StudyData", "Correlation("&B18&","&$H$4&",Period:="&$O$19&",InputChoice1:=Close,InputChoice2:=Close) when (LocalYear("&B18&")="&$I$19&" and LocalMonth("&B18&")="&$K$19&" and LocalDay("&B18&")="&$M$19&")", "Bar", "", "Close",$Q$19,, "all","", "","True","T")) -> -13.26556014 | I18: =IF(B18="","",RTD("cqg.rtd",,"StudyData", "Correlation("&B18&","&$I$4&",Period:="&$O$19&",InputChoice1:=Close,InputChoice2:=Close) when (LocalYear("&B18&")="&$I$19&" and LocalMonth("&B18&")="&$K$19&" and LocalDay("&B18&")="&$M$19&")", "Bar", "", "Close",$Q$19,, "all","", "","True","T")) -> 12.01340908 | J18: =IF(B18="","",RTD("cqg.rtd",,"StudyData", "Correlation("&B18&","&$J$4&",Period:="&$O$19&",InputChoice1:=Close,InputChoice2:=Close) when (LocalYear("&B18&")="&$I$19&" and LocalMonth("&B18&")="&$K$19&" and LocalDay("&B18&")="&$M$19&")", "Bar", "", "Close",$Q$19,, "all","", "","True","T")) -> -53.33687588 | K18: =IF(B18="","",RTD("cqg.rtd",,"StudyData", "Correlation("&B18&","&$K$4&",Period:="&$O$19&",InputChoice1:=Close,InputChoice2:=Close) when (LocalYear("&B18&")="&$I$19&" and LocalMonth("&B18&")="&$K$19&" and LocalDay("&B18&")="&$M$19&")", "Bar", "", "Close",$Q$19,, "all","", "","True","T")) -> 76.24565453 | L18: =IF(B18="","",RTD("cqg.rtd",,"StudyData", "Correlation("&B18&","&$L$4&",Period:="&$O$19&",InputChoice1:=Close,InputChoice2:=Close) when (LocalYear("&B18&")="&$I$19&" and LocalMonth("&B18&")="&$K$19&" and LocalDay("&B18&")="&$M$19&")", "Bar", "", "Close",$Q$19,, "all","", "","True","T")) -> 86.65538101 | M18: =IF(B18="","",RTD("cqg.rtd",,"StudyData", "Correlation("&B18&","&$M$4&",Period:="&$O$19&",InputChoice1:=Close,InputChoice2:=Close) when (LocalYear("&B18&")="&$I$19&" and LocalMonth("&B18&")="&$K$19&" and LocalDay("&B18&")="&$M$19&")", "Bar", "", "Close",$Q$19,, "all","", "","True","T")) -> -82.7023459 | N18: =IF(B18="","",RTD("cqg.rtd",,"StudyData", "Correlation("&B18&","&$N$4&",Period:="&$O$19&",InputChoice1:=Close,InputChoice2:=Close) when (LocalYear("&B18&")="&$I$19&" and LocalMonth("&B18&")="&$K$19&" and LocalDay("&B18&")="&$M$19&")", "Bar", "", "Close",$Q$19,, "all","", "","True","T")) -> -89.961672 | O18: =IF(B18="","",RTD("cqg.rtd",,"StudyData", "Correlation("&B18&","&$O$4&",Period:="&$O$19&",InputChoice1:=Close,InputChoice2:=Close) when (LocalYear("&B18&")="&$I$19&" and LocalMonth("&B18&")="&$K$19&" and LocalDay("&B18&")="&$M$19&")", "Bar", "", "Close",$Q$19,, "all","", "","True","T")) -> -81.11806022 | P18: =IF(B18="","",RTD("cqg.rtd",,"StudyData", "Correlation("&B18&","&$P$4&",Period:="&$O$19&",InputChoice1:=Close,InputChoice2:=Close) when (LocalYear("&B18&")="&$I$19&" and LocalMonth("&B18&")="&$K$19&" and LocalDay("&B18&")="&$M$19&")", "Bar", "", "Close",$Q$19,, "all","", "","True","T")) -> -66.90146835 | Q18: =IF(B18="","",RTD("cqg.rtd",,"StudyData", "Correlation("&B18&","&$Q$4&",Period:="&$O$19&",InputChoice1:=Close,InputChoice2:=Close) when (LocalYear("&B18&")="&$I$19&" and LocalMonth("&B18&")="&$K$19&" and LocalDay("&B18&")="&$M$19&")", "Bar", "", "Close",$Q$19,, "all","", "","True","T")) -> -87.60914232 | R18: =IF(B18="","",RTD("cqg.rtd",,"StudyData", "Correlation("&B18&","&$R$4&",Period:="&$O$19&",InputChoice1:=Close,InputChoice2:=Close) when (LocalYear("&B18&")="&$I$19&" and LocalMonth("&B18&")="&$K$19&" and LocalDay("&B18&")="&$M$19&")", "Bar", "", "Close",$Q$19,, "all","", "","True","T")) -> 33.67111537 | S18: =IF(B18="","",RTD("cqg.rtd",,"StudyData", "Correlation("&B18&","&$S$4&",Period:="&$O$19&",InputChoice1:=Close,InputChoice2:=Close) when (LocalYear("&B18&")="&$I$19&" and LocalMonth("&B18&")="&$K$19&" and LocalDay("&B18&")="&$M$19&")", "Bar", "", "Close",$Q$19,, "all","", "","True","T")) -> -55.55150103 | T18: =IF(B18="","",RTD("cqg.rtd",,"StudyData", "Correlation("&B18&","&$T$4&",Period:="&$O$19&",InputChoice1:=Close,InputChoice2:=Close) when (LocalYear("&B18&")="&$I$19&" and LocalMonth("&B18&")="&$K$19&" and LocalDay("&B18&")="&$M$19&")", "Bar", "", "Close",$Q$19,, "all","", "","True","T")) -> -99.18536793
B19: Copyright, CQG, Inc., © 2015 | H19: Year: | I19: 2015 | J19: Month: | K19: 5 | L19: Day: | M19: 12 | N19: Look Back: | O19: 20 | P19: Period: | Q19: ADC | S19: =YEAR(TODAY()) -> 2015 | T19: =MONTH(TODAY()) -> 8 | U19: =DAY(TODAY()) -> 4
B20: Designed by Thom Hartle
B21: Symbol | C21: Last | D21: NC | E21: %NC | H21: =B22 -> EP | I21: =B23 -> ENQ | J21: =B24 -> YM | K21: =B25 -> TFE | L21: =B26 -> EMD | M21: =B27 -> DD | N21: =B28 -> DSX | O21: =B29 -> PIL | P21: =B30 -> QFA | Q21: =B31 -> EU6 | R21: =B32 -> GCE | S21: =B33 -> SIE | T21: =B34 -> CLE | U21: =B35 -> DXE
B22: EP | C22: =IF(B22="","",RTD("cqg.rtd", ,"ContractData",B22, "LastQuoteToday",, "T")) -> 2092.25 | D22: =IF(B22="","",RTD("cqg.rtd", ,"ContractData",B22, "NetLastQuoteToday",, "T")) -> 1.25 | E22: =IF(B22="","",IF(ISERROR(RTD("cqg.rtd",,"ContractData",B22,"PerCentNetLastTrade",,"T")/100),"",RTD("cqg.rtd",,"ContractData",B22,"PerCentNetLastTrade",,"T")/100)) -> 0.0005978000956 | F22: Correlations | G22: =B22 -> EP | I22: =IF(B22="","",RTD("cqg.rtd",,"StudyData", "Correlation("&B22&","&$I$21&",Period:="&$O$36&",InputChoice1:=Close,InputChoice2:=Close) when (LocalYear("&B22&")="&$I$36&" and LocalMonth("&B22&")="&$K$36&" and LocalDay("&B22&")="&$M$36&")", "Bar", "", "Close",$Q$36,, "all","", "","True","T")) -> 85.97468925 | J22: =IF(B22="","",RTD("cqg.rtd",,"StudyData", "Correlation("&B22&","&$J$21&",Period:="&$O$36&",InputChoice1:=Close,InputChoice2:=Close) when (LocalYear("&B22&")="&$I$36&" and LocalMonth("&B22&")="&$K$36&" and LocalDay("&B22&")="&$M$36&")", "Bar", "", "Close",$Q$36,, "all","", "","True","T")) -> 84.18127355 | K22: =IF(B22="","",RTD("cqg.rtd",,"StudyData", "Correlation("&B22&","&$K$21&",Period:="&$O$36&",InputChoice1:=Close,InputChoice2:=Close) when (LocalYear("&B22&")="&$I$36&" and LocalMonth("&B22&")="&$K$36&" and LocalDay("&B22&")="&$M$36&")", "Bar", "", "Close",$Q$36,, "all","", "","True","T")) -> 43.85660309 | L22: =IF(B22="","",RTD("cqg.rtd",,"StudyData", "Correlation("&B22&","&$L$21&",Period:="&$O$36&",InputChoice1:=Close,InputChoice2:=Close) when (LocalYear("&B22&")="&$I$36&" and LocalMonth("&B22&")="&$K$36&" and LocalDay("&B22&")="&$M$36&")", "Bar", "", "Close",$Q$36,, "all","", "","True","T")) -> 63.86018123 | M22: =IF(B22="","",RTD("cqg.rtd",,"StudyData", "Correlation("&B22&","&$M$21&",Period:="&$O$36&",InputChoice1:=Close,InputChoice2:=Close) when (LocalYear("&B22&")="&$I$36&" and LocalMonth("&B22&")="&$K$36&" and LocalDay("&B22&")="&$M$36&")", "Bar", "", "Close",$Q$36,, "all","", "","True","T")) -> 38.14454666 | N22: =IF(B22="","",RTD("cqg.rtd",,"StudyData", "Correlation("&B22&","&$N$21&",Period:="&$O$36&",InputChoice1:=Close,InputChoice2:=Close) when (LocalYear("&B22&")="&$I$36&" and LocalMonth("&B22&")="&$K$36&" and LocalDay("&B22&")="&$M$36&")", "Bar", "", "Close",$Q$36,, "all","", "","True","T")) -> 47.22727101 | O22: =IF(B22="","",RTD("cqg.rtd",,"StudyData", "Correlation("&B22&","&$O$21&",Period:="&$O$36&",InputChoice1:=Close,InputChoice2:=Close) when (LocalYear("&B22&")="&$I$36&" and LocalMonth("&B22&")="&$K$36&" and LocalDay("&B22&")="&$M$36&")", "Bar", "", "Close",$Q$36,, "all","", "","True","T")) -> 53.91235017 | P22: =IF(B22="","",RTD("cqg.rtd",,"StudyData", "Correlation("&B22&","&$P$21&",Period:="&$O$36&",InputChoice1:=Close,InputChoice2:=Close) when (LocalYear("&B22&")="&$I$36&" and LocalMonth("&B22&")="&$K$36&" and LocalDay("&B22&")="&$M$36&")", "Bar", "", "Close",$Q$36,, "all","", "","True","T")) -> 71.40219097 | Q22: =IF(B22="","",RTD("cqg.rtd",,"StudyData", "Correlation("&B22&","&$Q$21&",Period:="&$O$36&",InputChoice1:=Close,InputChoice2:=Close) when (LocalYear("&B22&")="&$I$36&" and LocalMonth("&B22&")="&$K$36&" and LocalDay("&B22&")="&$M$36&")", "Bar", "", "Close",$Q$36,, "all","", "","True","T")) -> -22.65988104 | R22: =IF(B22="","",RTD("cqg.rtd",,"StudyData", "Correlation("&B22&","&$R$21&",Period:="&$O$36&",InputChoice1:=Close,InputChoice2:=Close) when (LocalYear("&B22&")="&$I$36&" and LocalMonth("&B22&")="&$K$36&" and LocalDay("&B22&")="&$M$36&")", "Bar", "", "Close",$Q$36,, "all","", "","True","T")) -> -1.13360742 | S22: =IF(B22="","",RTD("cqg.rtd",,"StudyData", "Correlation("&B22&","&$S$21&",Period:="&$O$36&",InputChoice1:=Close,InputChoice2:=Close) when (LocalYear("&B22&")="&$I$36&" and LocalMonth("&B22&")="&$K$36&" and LocalDay("&B22&")="&$M$36&")", "Bar", "", "Close",$Q$36,, "all","", "","True","T")) -> -10.8065781 | T22: =IF(B22="","",RTD("cqg.rtd",,"StudyData", "Correlation("&B22&","&$T$21&",Period:="&$O$36&",InputChoice1:=Close,InputChoice2:=Close) when (LocalYear("&B22&")="&$I$36&" and LocalMonth("&B22&")="&$K$36&" and LocalDay("&B22&")="&$M$36&")", "Bar", "", "Close",$Q$36,, "all","", "","True","T")) -> -36.76843043 | U22: =IF(B22="","",RTD("cqg.rtd",,"StudyData", "Correlation("&B22&","&$U$21&",Period:="&$O$36&",InputChoice1:=Close,InputChoice2:=Close) when (LocalYear("&B22&")="&$I$36&" and LocalMonth("&B22&")="&$K$36&" and LocalDay("&B22&")="&$M$36&")", "Bar", "", "Close",$Q$36,, "all","", "","True","T")) -> 21.48117238
B23: ENQ | C23: =IF(B23="","",RTD("cqg.rtd", ,"ContractData",B23, "LastQuoteToday",, "T")) -> 4566.5 | D23: =IF(B23="","",RTD("cqg.rtd", ,"ContractData",B23, "NetLastQuoteToday",, "T")) -> -6.5 | E23: =IF(B23="","",IF(ISERROR(RTD("cqg.rtd",,"ContractData",B23,"PerCentNetLastTrade",,"T")/100),"",RTD("cqg.rtd",,"ContractData",B23,"PerCentNetLastTrade",,"T")/100)) -> -0.001421386398 | G23: =B23 -> ENQ | H23: =IF(B23="","",RTD("cqg.rtd",,"StudyData", "Correlation("&B23&","&$H$21&",Period:="&$O$36&",InputChoice1:=Close,InputChoice2:=Close) when (LocalYear("&B23&")="&$I$36&" and LocalMonth("&B23&")="&$K$36&" and LocalDay("&B23&")="&$M$36&")", "Bar", "", "Close",$Q$36,, "all","", "","True","T")) -> 85.97468925 | J23: =IF(B23="","",RTD("cqg.rtd",,"StudyData", "Correlation("&B23&","&$J$21&",Period:="&$O$36&",InputChoice1:=Close,InputChoice2:=Close) when (LocalYear("&B23&")="&$I$36&" and LocalMonth("&B23&")="&$K$36&" and LocalDay("&B23&")="&$M$36&")", "Bar", "", "Close",$Q$36,, "all","", "","True","T")) -> 60.36805348 | K23: =IF(B23="","",RTD("cqg.rtd",,"StudyData", "Correlation("&B23&","&$K$21&",Period:="&$O$36&",InputChoice1:=Close,InputChoice2:=Close) when (LocalYear("&B23&")="&$I$36&" and LocalMonth("&B23&")="&$K$36&" and LocalDay("&B23&")="&$M$36&")", "Bar", "", "Close",$Q$36,, "all","", "","True","T")) -> 30.43430918 | L23: =IF(B23="","",RTD("cqg.rtd",,"StudyData", "Correlation("&B23&","&$L$21&",Period:="&$O$36&",InputChoice1:=Close,InputChoice2:=Close) when (LocalYear("&B23&")="&$I$36&" and LocalMonth("&B23&")="&$K$36&" and LocalDay("&B23&")="&$M$36&")", "Bar", "", "Close",$Q$36,, "all","", "","True","T")) -> 42.87360003 | M23: =IF(B23="","",RTD("cqg.rtd",,"StudyData", "Correlation("&B23&","&$M$21&",Period:="&$O$36&",InputChoice1:=Close,InputChoice2:=Close) when (LocalYear("&B23&")="&$I$36&" and LocalMonth("&B23&")="&$K$36&" and LocalDay("&B23&")="&$M$36&")", "Bar", "", "Close",$Q$36,, "all","", "","True","T")) -> 18.12667021 | N23: =IF(B23="","",RTD("cqg.rtd",,"StudyData", "Correlation("&B23&","&$N$21&",Period:="&$O$36&",InputChoice1:=Close,InputChoice2:=Close) when (LocalYear("&B23&")="&$I$36&" and LocalMonth("&B23&")="&$K$36&" and LocalDay("&B23&")="&$M$36&")", "Bar", "", "Close",$Q$36,, "all","", "","True","T")) -> 31.42895027 | O23: =IF(B23="","",RTD("cqg.rtd",,"StudyData", "Correlation("&B23&","&$O$21&",Period:="&$O$36&",InputChoice1:=Close,InputChoice2:=Close) when (LocalYear("&B23&")="&$I$36&" and LocalMonth("&B23&")="&$K$36&" and LocalDay("&B23&")="&$M$36&")", "Bar", "", "Close",$Q$36,, "all","", "","True","T")) -> 39.80639181 | P23: =IF(B23="","",RTD("cqg.rtd",,"StudyData", "Correlation("&B23&","&$P$21&",Period:="&$O$36&",InputChoice1:=Close,InputChoice2:=Close) when (LocalYear("&B23&")="&$I$36&" and LocalMonth("&B23&")="&$K$36&" and LocalDay("&B23&")="&$M$36&")", "Bar", "", "Close",$Q$36,, "all","", "","True","T")) -> 49.37790895 | Q23: =IF(B23="","",RTD("cqg.rtd",,"StudyData", "Correlation("&B23&","&$Q$21&",Period:="&$O$36&",InputChoice1:=Close,InputChoice2:=Close) when (LocalYear("&B23&")="&$I$36&" and LocalMonth("&B23&")="&$K$36&" and LocalDay("&B23&")="&$M$36&")", "Bar", "", "Close",$Q$36,, "all","", "","True","T")) -> -20.10054563 | R23: =IF(B23="","",RTD("cqg.rtd",,"StudyData", "Correlation("&B23&","&$R$21&",Period:="&$O$36&",InputChoice1:=Close,InputChoice2:=Close) when (LocalYear("&B23&")="&$I$36&" and LocalMonth("&B23&")="&$K$36&" and LocalDay("&B23&")="&$M$36&")", "Bar", "", "Close",$Q$36,, "all","", "","True","T")) -> 1.50065662 | S23: =IF(B23="","",RTD("cqg.rtd",,"StudyData", "Correlation("&B23&","&$S$21&",Period:="&$O$36&",InputChoice1:=Close,InputChoice2:=Close) when (LocalYear("&B23&")="&$I$36&" and LocalMonth("&B23&")="&$K$36&" and LocalDay("&B23&")="&$M$36&")", "Bar", "", "Close",$Q$36,, "all","", "","True","T")) -> -12.95285147 | T23: =IF(B23="","",RTD("cqg.rtd",,"StudyData", "Correlation("&B23&","&$T$21&",Period:="&$O$36&",InputChoice1:=Close,InputChoice2:=Close) when (LocalYear("&B23&")="&$I$36&" and LocalMonth("&B23&")="&$K$36&" and LocalDay("&B23&")="&$M$36&")", "Bar", "", "Close",$Q$36,, "all","", "","True","T")) -> -40.69132005 | U23: =IF(B23="","",RTD("cqg.rtd",,"StudyData", "Correlation("&B23&","&$U$21&",Period:="&$O$36&",InputChoice1:=Close,InputChoice2:=Close) when (LocalYear("&B23&")="&$I$36&" and LocalMonth("&B23&")="&$K$36&" and LocalDay("&B23&")="&$M$36&")", "Bar", "", "Close",$Q$36,, "all","", "","True","T")) -> 9.04665432
B24: YM | C24: =IF(B24="","",RTD("cqg.rtd", ,"ContractData",B24, "LastQuoteToday",, "T")) -> 17516 | D24: =IF(B24="","",RTD("cqg.rtd", ,"ContractData",B24, "NetLastQuoteToday",, "T")) -> 5 | E24: =IF(B24="","",IF(ISERROR(RTD("cqg.rtd",,"ContractData",B24,"PerCentNetLastTrade",,"T")/100),"",RTD("cqg.rtd",,"ContractData",B24,"PerCentNetLastTrade",,"T")/100)) -> 0.0002284278454 | G24: YM | H24: =IF(B24="","",RTD("cqg.rtd",,"StudyData", "Correlation("&B24&","&$H$21&",Period:="&$O$36&",InputChoice1:=Close,InputChoice2:=Close) when (LocalYear("&B24&")="&$I$36&" and LocalMonth("&B24&")="&$K$36&" and LocalDay("&B24&")="&$M$36&")", "Bar", "", "Close",$Q$36,, "all","", "","True","T")) -> 84.18127355 | I24: =IF(B24="","",RTD("cqg.rtd",,"StudyData", "Correlation("&B24&","&$I$21&",Period:="&$O$36&",InputChoice1:=Close,InputChoice2:=Close) when (LocalYear("&B24&")="&$I$36&" and LocalMonth("&B24&")="&$K$36&" and LocalDay("&B24&")="&$M$36&")", "Bar", "", "Close",$Q$36,, "all","", "","True","T")) -> 60.36805348 | K24: =IF(B24="","",RTD("cqg.rtd",,"StudyData", "Correlation("&B24&","&$K$21&",Period:="&$O$36&",InputChoice1:=Close,InputChoice2:=Close) when (LocalYear("&B24&")="&$I$36&" and LocalMonth("&B24&")="&$K$36&" and LocalDay("&B24&")="&$M$36&")", "Bar", "", "Close",$Q$36,, "all","", "","True","T")) -> 38.25191504 | L24: =IF(B24="","",RTD("cqg.rtd",,"StudyData", "Correlation("&B24&","&$L$21&",Period:="&$O$36&",InputChoice1:=Close,InputChoice2:=Close) when (LocalYear("&B24&")="&$I$36&" and LocalMonth("&B24&")="&$K$36&" and LocalDay("&B24&")="&$M$36&")", "Bar", "", "Close",$Q$36,, "all","", "","True","T")) -> 57.30576719 | M24: =IF(B24="","",RTD("cqg.rtd",,"StudyData", "Correlation("&B24&","&$M$21&",Period:="&$O$36&",InputChoice1:=Close,InputChoice2:=Close) when (LocalYear("&B24&")="&$I$36&" and LocalMonth("&B24&")="&$K$36&" and LocalDay("&B24&")="&$M$36&")", "Bar", "", "Close",$Q$36,, "all","", "","True","T")) -> 39.92409994 | N24: =IF(B24="","",RTD("cqg.rtd",,"StudyData", "Correlation("&B24&","&$N$21&",Period:="&$O$36&",InputChoice1:=Close,InputChoice2:=Close) when (LocalYear("&B24&")="&$I$36&" and LocalMonth("&B24&")="&$K$36&" and LocalDay("&B24&")="&$M$36&")", "Bar", "", "Close",$Q$36,, "all","", "","True","T")) -> 42.8617454 | O24: =IF(B24="","",RTD("cqg.rtd",,"StudyData", "Correlation("&B24&","&$O$21&",Period:="&$O$36&",InputChoice1:=Close,InputChoice2:=Close) when (LocalYear("&B24&")="&$I$36&" and LocalMonth("&B24&")="&$K$36&" and LocalDay("&B24&")="&$M$36&")", "Bar", "", "Close",$Q$36,, "all","", "","True","T")) -> 43.21702057 | P24: =IF(B24="","",RTD("cqg.rtd",,"StudyData", "Correlation("&B24&","&$P$21&",Period:="&$O$36&",InputChoice1:=Close,InputChoice2:=Close) when (LocalYear("&B24&")="&$I$36&" and LocalMonth("&B24&")="&$K$36&" and LocalDay("&B24&")="&$M$36&")", "Bar", "", "Close",$Q$36,, "all","", "","True","T")) -> 61.90797664 | Q24: =IF(B24="","",RTD("cqg.rtd",,"StudyData", "Correlation("&B24&","&$Q$21&",Period:="&$O$36&",InputChoice1:=Close,InputChoice2:=Close) when (LocalYear("&B24&")="&$I$36&" and LocalMonth("&B24&")="&$K$36&" and LocalDay("&B24&")="&$M$36&")", "Bar", "", "Close",$Q$36,, "all","", "","True","T")) -> -18.29382609 | R24: =IF(B24="","",RTD("cqg.rtd",,"StudyData", "Correlation("&B24&","&$R$21&",Period:="&$O$36&",InputChoice1:=Close,InputChoice2:=Close) when (LocalYear("&B24&")="&$I$36&" and LocalMonth("&B24&")="&$K$36&" and LocalDay("&B24&")="&$M$36&")", "Bar", "", "Close",$Q$36,, "all","", "","True","T")) -> 7.94095953 | S24: =IF(B24="","",RTD("cqg.rtd",,"StudyData", "Correlation("&B24&","&$S$21&",Period:="&$O$36&",InputChoice1:=Close,InputChoice2:=Close) when (LocalYear("&B24&")="&$I$36&" and LocalMonth("&B24&")="&$K$36&" and LocalDay("&B24&")="&$M$36&")", "Bar", "", "Close",$Q$36,, "all","", "","True","T")) -> 8.16257204 | T24: =IF(B24="","",RTD("cqg.rtd",,"StudyData", "Correlation("&B24&","&$T$21&",Period:="&$O$36&",InputChoice1:=Close,InputChoice2:=Close) when (LocalYear("&B24&")="&$I$36&" and LocalMonth("&B24&")="&$K$36&" and LocalDay("&B24&")="&$M$36&")", "Bar", "", "Close",$Q$36,, "all","", "","True","T")) -> -17.05510825 | U24: =IF(B24="","",RTD("cqg.rtd",,"StudyData", "Correlation("&B24&","&$U$21&",Period:="&$O$36&",InputChoice1:=Close,InputChoice2:=Close) when (LocalYear("&B24&")="&$I$36&" and LocalMonth("&B24&")="&$K$36&" and LocalDay("&B24&")="&$M$36&")", "Bar", "", "Close",$Q$36,, "all","", "","True","T")) -> 12.02758168
B25: TFE | C25: =IF(B25="","",RTD("cqg.rtd", ,"ContractData",B25, "LastQuoteToday",, "T")) -> 1231.1 | D25: =IF(B25="","",RTD("cqg.rtd", ,"ContractData",B25, "NetLastQuoteToday",, "T")) -> 1.7 | E25: =IF(B25="","",IF(ISERROR(RTD("cqg.rtd",,"ContractData",B25,"PerCentNetLastTrade",,"T")/100),"",RTD("cqg.rtd",,"ContractData",B25,"PerCentNetLastTrade",,"T")/100)) -> 0.001382788352 | G25: TFE | H25: =IF(B25="","",RTD("cqg.rtd",,"StudyData", "Correlation("&B25&","&$H$21&",Period:="&$O$36&",InputChoice1:=Close,InputChoice2:=Close) when (LocalYear("&B25&")="&$I$36&" and LocalMonth("&B25&")="&$K$36&" and LocalDay("&B25&")="&$M$36&")", "Bar", "", "Close",$Q$36,, "all","", "","True","T")) -> 43.85660309 | I25: =IF(B25="","",RTD("cqg.rtd",,"StudyData", "Correlation("&B25&","&$I$21&",Period:="&$O$36&",InputChoice1:=Close,InputChoice2:=Close) when (LocalYear("&B25&")="&$I$36&" and LocalMonth("&B25&")="&$K$36&" and LocalDay("&B25&")="&$M$36&")", "Bar", "", "Close",$Q$36,, "all","", "","True","T")) -> 30.43430918 | J25: =IF(B25="","",RTD("cqg.rtd",,"StudyData", "Correlation("&B25&","&$J$21&",Period:="&$O$36&",InputChoice1:=Close,InputChoice2:=Close) when (LocalYear("&B25&")="&$I$36&" and LocalMonth("&B25&")="&$K$36&" and LocalDay("&B25&")="&$M$36&")", "Bar", "", "Close",$Q$36,, "all","", "","True","T")) -> 38.25191504 | L25: =IF(B25="","",RTD("cqg.rtd",,"StudyData", "Correlation("&B25&","&$L$21&",Period:="&$O$36&",InputChoice1:=Close,InputChoice2:=Close) when (LocalYear("&B25&")="&$I$36&" and LocalMonth("&B25&")="&$K$36&" and LocalDay("&B25&")="&$M$36&")", "Bar", "", "Close",$Q$36,, "all","", "","True","T")) -> 95.24834305 | M25: =IF(B25="","",RTD("cqg.rtd",,"StudyData", "Correlation("&B25&","&$M$21&",Period:="&$O$36&",InputChoice1:=Close,InputChoice2:=Close) when (LocalYear("&B25&")="&$I$36&" and LocalMonth("&B25&")="&$K$36&" and LocalDay("&B25&")="&$M$36&")", "Bar", "", "Close",$Q$36,, "all","", "","True","T")) -> 84.41189598 | N25: =IF(B25="","",RTD("cqg.rtd",,"StudyData", "Correlation("&B25&","&$N$21&",Period:="&$O$36&",InputChoice1:=Close,InputChoice2:=Close) when (LocalYear("&B25&")="&$I$36&" and LocalMonth("&B25&")="&$K$36&" and LocalDay("&B25&")="&$M$36&")", "Bar", "", "Close",$Q$36,, "all","", "","True","T")) -> 87.23213636 | O25: =IF(B25="","",RTD("cqg.rtd",,"StudyData", "Correlation("&B25&","&$O$21&",Period:="&$O$36&",InputChoice1:=Close,InputChoice2:=Close) when (LocalYear("&B25&")="&$I$36&" and LocalMonth("&B25&")="&$K$36&" and LocalDay("&B25&")="&$M$36&")", "Bar", "", "Close",$Q$36,, "all","", "","True","T")) -> 92.2255678 | P25: =IF(B25="","",RTD("cqg.rtd",,"StudyData", "Correlation("&B25&","&$P$21&",Period:="&$O$36&",InputChoice1:=Close,InputChoice2:=Close) when (LocalYear("&B25&")="&$I$36&" and LocalMonth("&B25&")="&$K$36&" and LocalDay("&B25&")="&$M$36&")", "Bar", "", "Close",$Q$36,, "all","", "","True","T")) -> 79.20360279 | Q25: =IF(B25="","",RTD("cqg.rtd",,"StudyData", "Correlation("&B25&","&$Q$21&",Period:="&$O$36&",InputChoice1:=Close,InputChoice2:=Close) when (LocalYear("&B25&")="&$I$36&" and LocalMonth("&B25&")="&$K$36&" and LocalDay("&B25&")="&$M$36&")", "Bar", "", "Close",$Q$36,, "all","", "","True","T")) -> -93.2499475 | R25: =IF(B25="","",RTD("cqg.rtd",,"StudyData", "Correlation("&B25&","&$R$21&",Period:="&$O$36&",InputChoice1:=Close,InputChoice2:=Close) when (LocalYear("&B25&")="&$I$36&" and LocalMonth("&B25&")="&$K$36&" and LocalDay("&B25&")="&$M$36&")", "Bar", "", "Close",$Q$36,, "all","", "","True","T")) -> 41.73965433 | S25: =IF(B25="","",RTD("cqg.rtd",,"StudyData", "Correlation("&B25&","&$S$21&",Period:="&$O$36&",InputChoice1:=Close,InputChoice2:=Close) when (LocalYear("&B25&")="&$I$36&" and LocalMonth("&B25&")="&$K$36&" and LocalDay("&B25&")="&$M$36&")", "Bar", "", "Close",$Q$36,, "all","", "","True","T")) -> -46.35533294 | T25: =IF(B25="","",RTD("cqg.rtd",,"StudyData", "Correlation("&B25&","&$T$21&",Period:="&$O$36&",InputChoice1:=Close,InputChoice2:=Close) when (LocalYear("&B25&")="&$I$36&" and LocalMonth("&B25&")="&$K$36&" and LocalDay("&B25&")="&$M$36&")", "Bar", "", "Close",$Q$36,, "all","", "","True","T")) -> -80.97803925 | U25: =IF(B25="","",RTD("cqg.rtd",,"StudyData", "Correlation("&B25&","&$U$21&",Period:="&$O$36&",InputChoice1:=Close,InputChoice2:=Close) when (LocalYear("&B25&")="&$I$36&" and LocalMonth("&B25&")="&$K$36&" and LocalDay("&B25&")="&$M$36&")", "Bar", "", "Close",$Q$36,, "all","", "","True","T")) -> 89.98088979
B26: EMD | C26: =IF(B26="","",RTD("cqg.rtd", ,"ContractData",B26, "LastQuoteToday",, "T")) -> 1500.9 | D26: =IF(B26="","",RTD("cqg.rtd", ,"ContractData",B26, "NetLastQuoteToday",, "T")) -> 6.4 | E26: =IF(B26="","",IF(ISERROR(RTD("cqg.rtd",,"ContractData",B26,"PerCentNetLastTrade",,"T")/100),"",RTD("cqg.rtd",,"ContractData",B26,"PerCentNetLastTrade",,"T")/100)) -> 0.004215456674 | G26: EMD | H26: =IF(B26="","",RTD("cqg.rtd",,"StudyData", "Correlation("&B26&","&$H$21&",Period:="&$O$36&",InputChoice1:=Close,InputChoice2:=Close) when (LocalYear("&B26&")="&$I$36&" and LocalMonth("&B26&")="&$K$36&" and LocalDay("&B26&")="&$M$36&")", "Bar", "", "Close",$Q$36,, "all","", "","True","T")) -> 63.86018123 | I26: =IF(B26="","",RTD("cqg.rtd",,"StudyData", "Correlation("&B26&","&$I$21&",Period:="&$O$36&",InputChoice1:=Close,InputChoice2:=Close) when (LocalYear("&B26&")="&$I$36&" and LocalMonth("&B26&")="&$K$36&" and LocalDay("&B26&")="&$M$36&")", "Bar", "", "Close",$Q$36,, "all","", "","True","T")) -> 42.87360003 | J26: =IF(B26="","",RTD("cqg.rtd",,"StudyData", "Correlation("&B26&","&$J$21&",Period:="&$O$36&",InputChoice1:=Close,InputChoice2:=Close) when (LocalYear("&B26&")="&$I$36&" and LocalMonth("&B26&")="&$K$36&" and LocalDay("&B26&")="&$M$36&")", "Bar", "", "Close",$Q$36,, "all","", "","True","T")) -> 57.30576719 | K26: =IF(B26="","",RTD("cqg.rtd",,"StudyData", "Correlation("&B26&","&$K$21&",Period:="&$O$36&",InputChoice1:=Close,InputChoice2:=Close) when (LocalYear("&B26&")="&$I$36&" and LocalMonth("&B26&")="&$K$36&" and LocalDay("&B26&")="&$M$36&")", "Bar", "", "Close",$Q$36,, "all","", "","True","T")) -> 95.24834305 | M26: =IF(B26="","",RTD("cqg.rtd",,"StudyData", "Correlation("&B26&","&$M$21&",Period:="&$O$36&",InputChoice1:=Close,InputChoice2:=Close) when (LocalYear("&B26&")="&$I$36&" and LocalMonth("&B26&")="&$K$36&" and LocalDay("&B26&")="&$M$36&")", "Bar", "", "Close",$Q$36,, "all","", "","True","T")) -> 81.51216888 | N26: =IF(B26="","",RTD("cqg.rtd",,"StudyData", "Correlation("&B26&","&$N$21&",Period:="&$O$36&",InputChoice1:=Close,InputChoice2:=Close) when (LocalYear("&B26&")="&$I$36&" and LocalMonth("&B26&")="&$K$36&" and LocalDay("&B26&")="&$M$36&")", "Bar", "", "Close",$Q$36,, "all","", "","True","T")) -> 84.69346766 | O26: =IF(B26="","",RTD("cqg.rtd",,"StudyData", "Correlation("&B26&","&$O$21&",Period:="&$O$36&",InputChoice1:=Close,InputChoice2:=Close) when (LocalYear("&B26&")="&$I$36&" and LocalMonth("&B26&")="&$K$36&" and LocalDay("&B26&")="&$M$36&")", "Bar", "", "Close",$Q$36,, "all","", "","True","T")) -> 90.51698506 | P26: =IF(B26="","",RTD("cqg.rtd",,"StudyData", "Correlation("&B26&","&$P$21&",Period:="&$O$36&",InputChoice1:=Close,InputChoice2:=Close) when (LocalYear("&B26&")="&$I$36&" and LocalMonth("&B26&")="&$K$36&" and LocalDay("&B26&")="&$M$36&")", "Bar", "", "Close",$Q$36,, "all","", "","True","T")) -> 84.42400601 | Q26: =IF(B26="","",RTD("cqg.rtd",,"StudyData", "Correlation("&B26&","&$Q$21&",Period:="&$O$36&",InputChoice1:=Close,InputChoice2:=Close) when (LocalYear("&B26&")="&$I$36&" and LocalMonth("&B26&")="&$K$36&" and LocalDay("&B26&")="&$M$36&")", "Bar", "", "Close",$Q$36,, "all","", "","True","T")) -> -80.02657982 | R26: =IF(B26="","",RTD("cqg.rtd",,"StudyData", "Correlation("&B26&","&$R$21&",Period:="&$O$36&",InputChoice1:=Close,InputChoice2:=Close) when (LocalYear("&B26&")="&$I$36&" and LocalMonth("&B26&")="&$K$36&" and LocalDay("&B26&")="&$M$36&")", "Bar", "", "Close",$Q$36,, "all","", "","True","T")) -> 29.9690793 | S26: =IF(B26="","",RTD("cqg.rtd",,"StudyData", "Correlation("&B26&","&$S$21&",Period:="&$O$36&",InputChoice1:=Close,InputChoice2:=Close) when (LocalYear("&B26&")="&$I$36&" and LocalMonth("&B26&")="&$K$36&" and LocalDay("&B26&")="&$M$36&")", "Bar", "", "Close",$Q$36,, "all","", "","True","T")) -> -45.4148116 | T26: =IF(B26="","",RTD("cqg.rtd",,"StudyData", "Correlation("&B26&","&$T$21&",Period:="&$O$36&",InputChoice1:=Close,InputChoice2:=Close) when (LocalYear("&B26&")="&$I$36&" and LocalMonth("&B26&")="&$K$36&" and LocalDay("&B26&")="&$M$36&")", "Bar", "", "Close",$Q$36,, "all","", "","True","T")) -> -74.28824842 | U26: =IF(B26="","",RTD("cqg.rtd",,"StudyData", "Correlation("&B26&","&$U$21&",Period:="&$O$36&",InputChoice1:=Close,InputChoice2:=Close) when (LocalYear("&B26&")="&$I$36&" and LocalMonth("&B26&")="&$K$36&" and LocalDay("&B26&")="&$M$36&")", "Bar", "", "Close",$Q$36,, "all","", "","True","T")) -> 81.70701974
B27: DD | C27: =IF(B27="","",RTD("cqg.rtd", ,"ContractData",B27, "LastQuoteToday",, "T")) -> 11462.5 | D27: =IF(B27="","",RTD("cqg.rtd", ,"ContractData",B27, "NetLastQuoteToday",, "T")) -> 23.5 | E27: =IF(B27="","",IF(ISERROR(RTD("cqg.rtd",,"ContractData",B27,"PerCentNetLastTrade",,"T")/100),"",RTD("cqg.rtd",,"ContractData",B27,"PerCentNetLastTrade",,"T")/100)) -> 0.002141795612 | G27: DD | H27: =IF(B27="","",RTD("cqg.rtd",,"StudyData", "Correlation("&B27&","&$H$21&",Period:="&$O$36&",InputChoice1:=Close,InputChoice2:=Close) when (LocalYear("&B27&")="&$I$36&" and LocalMonth("&B27&")="&$K$36&" and LocalDay("&B27&")="&$M$36&")", "Bar", "", "Close",$Q$36,, "all","", "","True","T")) -> 38.14454666 | I27: =IF(B27="","",RTD("cqg.rtd",,"StudyData", "Correlation("&B27&","&$I$21&",Period:="&$O$36&",InputChoice1:=Close,InputChoice2:=Close) when (LocalYear("&B27&")="&$I$36&" and LocalMonth("&B27&")="&$K$36&" and LocalDay("&B27&")="&$M$36&")", "Bar", "", "Close",$Q$36,, "all","", "","True","T")) -> 18.12667021 | J27: =IF(B27="","",RTD("cqg.rtd",,"StudyData", "Correlation("&B27&","&$J$21&",Period:="&$O$36&",InputChoice1:=Close,InputChoice2:=Close) when (LocalYear("&B27&")="&$I$36&" and LocalMonth("&B27&")="&$K$36&" and LocalDay("&B27&")="&$M$36&")", "Bar", "", "Close",$Q$36,, "all","", "","True","T")) -> 39.92409994 | K27: =IF(B27="","",RTD("cqg.rtd",,"StudyData", "Correlation("&B27&","&$K$21&",Period:="&$O$36&",InputChoice1:=Close,InputChoice2:=Close) when (LocalYear("&B27&")="&$I$36&" and LocalMonth("&B27&")="&$K$36&" and LocalDay("&B27&")="&$M$36&")", "Bar", "", "Close",$Q$36,, "all","", "","True","T")) -> 84.41189598 | L27: =IF(B27="","",RTD("cqg.rtd",,"StudyData", "Correlation("&B27&","&$L$21&",Period:="&$O$36&",InputChoice1:=Close,InputChoice2:=Close) when (LocalYear("&B27&")="&$I$36&" and LocalMonth("&B27&")="&$K$36&" and LocalDay("&B27&")="&$M$36&")", "Bar", "", "Close",$Q$36,, "all","", "","True","T")) -> 81.51216888 | N27: =IF(B27="","",RTD("cqg.rtd",,"StudyData", "Correlation("&B27&","&$N$21&",Period:="&$O$36&",InputChoice1:=Close,InputChoice2:=Close) when (LocalYear("&B27&")="&$I$36&" and LocalMonth("&B27&")="&$K$36&" and LocalDay("&B27&")="&$M$36&")", "Bar", "", "Close",$Q$36,, "all","", "","True","T")) -> 98.04351529 | O27: =IF(B27="","",RTD("cqg.rtd",,"StudyData", "Correlation("&B27&","&$O$21&",Period:="&$O$36&",InputChoice1:=Close,InputChoice2:=Close) when (LocalYear("&B27&")="&$I$36&" and LocalMonth("&B27&")="&$K$36&" and LocalDay("&B27&")="&$M$36&")", "Bar", "", "Close",$Q$36,, "all","", "","True","T")) -> 92.77503339 | P27: =IF(B27="","",RTD("cqg.rtd",,"StudyData", "Correlation("&B27&","&$P$21&",Period:="&$O$36&",InputChoice1:=Close,InputChoice2:=Close) when (LocalYear("&B27&")="&$I$36&" and LocalMonth("&B27&")="&$K$36&" and LocalDay("&B27&")="&$M$36&")", "Bar", "", "Close",$Q$36,, "all","", "","True","T")) -> 80.27412659 | Q27: =IF(B27="","",RTD("cqg.rtd",,"StudyData", "Correlation("&B27&","&$Q$21&",Period:="&$O$36&",InputChoice1:=Close,InputChoice2:=Close) when (LocalYear("&B27&")="&$I$36&" and LocalMonth("&B27&")="&$K$36&" and LocalDay("&B27&")="&$M$36&")", "Bar", "", "Close",$Q$36,, "all","", "","True","T")) -> -87.87368955 | R27: =IF(B27="","",RTD("cqg.rtd",,"StudyData", "Correlation("&B27&","&$R$21&",Period:="&$O$36&",InputChoice1:=Close,InputChoice2:=Close) when (LocalYear("&B27&")="&$I$36&" and LocalMonth("&B27&")="&$K$36&" and LocalDay("&B27&")="&$M$36&")", "Bar", "", "Close",$Q$36,, "all","", "","True","T")) -> 27.11836845 | S27: =IF(B27="","",RTD("cqg.rtd",,"StudyData", "Correlation("&B27&","&$S$21&",Period:="&$O$36&",InputChoice1:=Close,InputChoice2:=Close) when (LocalYear("&B27&")="&$I$36&" and LocalMonth("&B27&")="&$K$36&" and LocalDay("&B27&")="&$M$36&")", "Bar", "", "Close",$Q$36,, "all","", "","True","T")) -> -36.00257346 | T27: =IF(B27="","",RTD("cqg.rtd",,"StudyData", "Correlation("&B27&","&$T$21&",Period:="&$O$36&",InputChoice1:=Close,InputChoice2:=Close) when (LocalYear("&B27&")="&$I$36&" and LocalMonth("&B27&")="&$K$36&" and LocalDay("&B27&")="&$M$36&")", "Bar", "", "Close",$Q$36,, "all","", "","True","T")) -> -78.93640622 | U27: =IF(B27="","",RTD("cqg.rtd",,"StudyData", "Correlation("&B27&","&$U$21&",Period:="&$O$36&",InputChoice1:=Close,InputChoice2:=Close) when (LocalYear("&B27&")="&$I$36&" and LocalMonth("&B27&")="&$K$36&" and LocalDay("&B27&")="&$M$36&")", "Bar", "", "Close",$Q$36,, "all","", "","True","T")) -> 87.34155529
B28: DSX | C28: =IF(B28="","",RTD("cqg.rtd", ,"ContractData",B28, "LastQuoteToday",, "T")) -> 3621 | D28: =IF(B28="","",RTD("cqg.rtd", ,"ContractData",B28, "NetLastQuoteToday",, "T")) -> -13 | E28: =IF(B28="","",IF(ISERROR(RTD("cqg.rtd",,"ContractData",B28,"PerCentNetLastTrade",,"T")/100),"",RTD("cqg.rtd",,"ContractData",B28,"PerCentNetLastTrade",,"T")/100)) -> -0.003577325261 | G28: DSX | H28: =IF(B28="","",RTD("cqg.rtd",,"StudyData", "Correlation("&B28&","&$H$21&",Period:="&$O$36&",InputChoice1:=Close,InputChoice2:=Close) when (LocalYear("&B28&")="&$I$36&" and LocalMonth("&B28&")="&$K$36&" and LocalDay("&B28&")="&$M$36&")", "Bar", "", "Close",$Q$36,, "all","", "","True","T")) -> 47.22727101 | I28: =IF(B28="","",RTD("cqg.rtd",,"StudyData", "Correlation("&B28&","&$I$21&",Period:="&$O$36&",InputChoice1:=Close,InputChoice2:=Close) when (LocalYear("&B28&")="&$I$36&" and LocalMonth("&B28&")="&$K$36&" and LocalDay("&B28&")="&$M$36&")", "Bar", "", "Close",$Q$36,, "all","", "","True","T")) -> 31.42895027 | J28: =IF(B28="","",RTD("cqg.rtd",,"StudyData", "Correlation("&B28&","&$J$21&",Period:="&$O$36&",InputChoice1:=Close,InputChoice2:=Close) when (LocalYear("&B28&")="&$I$36&" and LocalMonth("&B28&")="&$K$36&" and LocalDay("&B28&")="&$M$36&")", "Bar", "", "Close",$Q$36,, "all","", "","True","T")) -> 42.8617454 | K28: =IF(B28="","",RTD("cqg.rtd",,"StudyData", "Correlation("&B28&","&$K$21&",Period:="&$O$36&",InputChoice1:=Close,InputChoice2:=Close) when (LocalYear("&B28&")="&$I$36&" and LocalMonth("&B28&")="&$K$36&" and LocalDay("&B28&")="&$M$36&")", "Bar", "", "Close",$Q$36,, "all","", "","True","T")) -> 87.23213636 | L28: =IF(B28="","",RTD("cqg.rtd",,"StudyData", "Correlation("&B28&","&$L$21&",Period:="&$O$36&",InputChoice1:=Close,InputChoice2:=Close) when (LocalYear("&B28&")="&$I$36&" and LocalMonth("&B28&")="&$K$36&" and LocalDay("&B28&")="&$M$36&")", "Bar", "", "Close",$Q$36,, "all","", "","True","T")) -> 84.69346766 | M28: =IF(B28="","",RTD("cqg.rtd",,"StudyData", "Correlation("&B28&","&$M$21&",Period:="&$O$36&",InputChoice1:=Close,InputChoice2:=Close) when (LocalYear("&B28&")="&$I$36&" and LocalMonth("&B28&")="&$K$36&" and LocalDay("&B28&")="&$M$36&")", "Bar", "", "Close",$Q$36,, "all","", "","True","T")) -> 98.04351529 | O28: =IF(B28="","",RTD("cqg.rtd",,"StudyData", "Correlation("&B28&","&$O$21&",Period:="&$O$36&",InputChoice1:=Close,InputChoice2:=Close) when (LocalYear("&B28&")="&$I$36&" and LocalMonth("&B28&")="&$K$36&" and LocalDay("&B28&")="&$M$36&")", "Bar", "", "Close",$Q$36,, "all","", "","True","T")) -> 96.49244008 | P28: =IF(B28="","",RTD("cqg.rtd",,"StudyData", "Correlation("&B28&","&$P$21&",Period:="&$O$36&",InputChoice1:=Close,InputChoice2:=Close) when (LocalYear("&B28&")="&$I$36&" and LocalMonth("&B28&")="&$K$36&" and LocalDay("&B28&")="&$M$36&")", "Bar", "", "Close",$Q$36,, "all","", "","True","T")) -> 84.57699757 | Q28: =IF(B28="","",RTD("cqg.rtd",,"StudyData", "Correlation("&B28&","&$Q$21&",Period:="&$O$36&",InputChoice1:=Close,InputChoice2:=Close) when (LocalYear("&B28&")="&$I$36&" and LocalMonth("&B28&")="&$K$36&" and LocalDay("&B28&")="&$M$36&")", "Bar", "", "Close",$Q$36,, "all","", "","True","T")) -> -86.85736615 | R28: =IF(B28="","",RTD("cqg.rtd",,"StudyData", "Correlation("&B28&","&$R$21&",Period:="&$O$36&",InputChoice1:=Close,InputChoice2:=Close) when (LocalYear("&B28&")="&$I$36&" and LocalMonth("&B28&")="&$K$36&" and LocalDay("&B28&")="&$M$36&")", "Bar", "", "Close",$Q$36,, "all","", "","True","T")) -> 30.16773965 | S28: =IF(B28="","",RTD("cqg.rtd",,"StudyData", "Correlation("&B28&","&$S$21&",Period:="&$O$36&",InputChoice1:=Close,InputChoice2:=Close) when (LocalYear("&B28&")="&$I$36&" and LocalMonth("&B28&")="&$K$36&" and LocalDay("&B28&")="&$M$36&")", "Bar", "", "Close",$Q$36,, "all","", "","True","T")) -> -37.60776667 | T28: =IF(B28="","",RTD("cqg.rtd",,"StudyData", "Correlation("&B28&","&$T$21&",Period:="&$O$36&",InputChoice1:=Close,InputChoice2:=Close) when (LocalYear("&B28&")="&$I$36&" and LocalMonth("&B28&")="&$K$36&" and LocalDay("&B28&")="&$M$36&")", "Bar", "", "Close",$Q$36,, "all","", "","True","T")) -> -79.82940356 | U28: =IF(B28="","",RTD("cqg.rtd",,"StudyData", "Correlation("&B28&","&$U$21&",Period:="&$O$36&",InputChoice1:=Close,InputChoice2:=Close) when (LocalYear("&B28&")="&$I$36&" and LocalMonth("&B28&")="&$K$36&" and LocalDay("&B28&")="&$M$36&")", "Bar", "", "Close",$Q$36,, "all","", "","True","T")) -> 84.80144461
B29: PIL | C29: =IF(B29="","",RTD("cqg.rtd", ,"ContractData",B29, "LastQuoteToday",, "T")) -> 5114.5 | D29: =IF(B29="","",RTD("cqg.rtd", ,"ContractData",B29, "NetLastQuoteToday",, "T")) -> 6.5 | E29: =IF(B29="","",IF(ISERROR(RTD("cqg.rtd",,"ContractData",B29,"PerCentNetLastTrade",,"T")/100),"",RTD("cqg.rtd",,"ContractData",B29,"PerCentNetLastTrade",,"T")/100)) -> 0.001272513704 | G29: PIL | H29: =IF(B29="","",RTD("cqg.rtd",,"StudyData", "Correlation("&B29&","&$H$21&",Period:="&$O$36&",InputChoice1:=Close,InputChoice2:=Close) when (LocalYear("&B29&")="&$I$36&" and LocalMonth("&B29&")="&$K$36&" and LocalDay("&B29&")="&$M$36&")", "Bar", "", "Close",$Q$36,, "all","", "","True","T")) -> 53.91235017 | I29: =IF(B29="","",RTD("cqg.rtd",,"StudyData", "Correlation("&B29&","&$I$21&",Period:="&$O$36&",InputChoice1:=Close,InputChoice2:=Close) when (LocalYear("&B29&")="&$I$36&" and LocalMonth("&B29&")="&$K$36&" and LocalDay("&B29&")="&$M$36&")", "Bar", "", "Close",$Q$36,, "all","", "","True","T")) -> 39.80639181 | J29: =IF(B29="","",RTD("cqg.rtd",,"StudyData", "Correlation("&B29&","&$J$21&",Period:="&$O$36&",InputChoice1:=Close,InputChoice2:=Close) when (LocalYear("&B29&")="&$I$36&" and LocalMonth("&B29&")="&$K$36&" and LocalDay("&B29&")="&$M$36&")", "Bar", "", "Close",$Q$36,, "all","", "","True","T")) -> 43.21702057 | K29: =IF(B29="","",RTD("cqg.rtd",,"StudyData", "Correlation("&B29&","&$K$21&",Period:="&$O$36&",InputChoice1:=Close,InputChoice2:=Close) when (LocalYear("&B29&")="&$I$36&" and LocalMonth("&B29&")="&$K$36&" and LocalDay("&B29&")="&$M$36&")", "Bar", "", "Close",$Q$36,, "all","", "","True","T")) -> 92.2255678 | L29: =IF(B29="","",RTD("cqg.rtd",,"StudyData", "Correlation("&B29&","&$L$21&",Period:="&$O$36&",InputChoice1:=Close,InputChoice2:=Close) when (LocalYear("&B29&")="&$I$36&" and LocalMonth("&B29&")="&$K$36&" and LocalDay("&B29&")="&$M$36&")", "Bar", "", "Close",$Q$36,, "all","", "","True","T")) -> 90.51698506 | M29: =IF(B29="","",RTD("cqg.rtd",,"StudyData", "Correlation("&B29&","&$M$21&",Period:="&$O$36&",InputChoice1:=Close,InputChoice2:=Close) when (LocalYear("&B29&")="&$I$36&" and LocalMonth("&B29&")="&$K$36&" and LocalDay("&B29&")="&$M$36&")", "Bar", "", "Close",$Q$36,, "all","", "","True","T")) -> 92.77503339 | N29: =IF(B29="","",RTD("cqg.rtd",,"StudyData", "Correlation("&B29&","&$N$21&",Period:="&$O$36&",InputChoice1:=Close,InputChoice2:=Close) when (LocalYear("&B29&")="&$I$36&" and LocalMonth("&B29&")="&$K$36&" and LocalDay("&B29&")="&$M$36&")", "Bar", "", "Close",$Q$36,, "all","", "","True","T")) -> 96.49244008 | P29: =IF(B29="","",RTD("cqg.rtd",,"StudyData", "Correlation("&B29&","&$P$21&",Period:="&$O$36&",InputChoice1:=Close,InputChoice2:=Close) when (LocalYear("&B29&")="&$I$36&" and LocalMonth("&B29&")="&$K$36&" and LocalDay("&B29&")="&$M$36&")", "Bar", "", "Close",$Q$36,, "all","", "","True","T")) -> 92.22809656 | Q29: =IF(B29="","",RTD("cqg.rtd",,"StudyData", "Correlation("&B29&","&$Q$21&",Period:="&$O$36&",InputChoice1:=Close,InputChoice2:=Close) when (LocalYear("&B29&")="&$I$36&" and LocalMonth("&B29&")="&$K$36&" and LocalDay("&B29&")="&$M$36&")", "Bar", "", "Close",$Q$36,, "all","", "","True","T")) -> -90.26377327 | R29: =IF(B29="","",RTD("cqg.rtd",,"StudyData", "Correlation("&B29&","&$R$21&",Period:="&$O$36&",InputChoice1:=Close,InputChoice2:=Close) when (LocalYear("&B29&")="&$I$36&" and LocalMonth("&B29&")="&$K$36&" and LocalDay("&B29&")="&$M$36&")", "Bar", "", "Close",$Q$36,, "all","", "","True","T")) -> 31.7591744 | S29: =IF(B29="","",RTD("cqg.rtd",,"StudyData", "Correlation("&B29&","&$S$21&",Period:="&$O$36&",InputChoice1:=Close,InputChoice2:=Close) when (LocalYear("&B29&")="&$I$36&" and LocalMonth("&B29&")="&$K$36&" and LocalDay("&B29&")="&$M$36&")", "Bar", "", "Close",$Q$36,, "all","", "","True","T")) -> -46.14249362 | T29: =IF(B29="","",RTD("cqg.rtd",,"StudyData", "Correlation("&B29&","&$T$21&",Period:="&$O$36&",InputChoice1:=Close,InputChoice2:=Close) when (LocalYear("&B29&")="&$I$36&" and LocalMonth("&B29&")="&$K$36&" and LocalDay("&B29&")="&$M$36&")", "Bar", "", "Close",$Q$36,, "all","", "","True","T")) -> -83.25401489 | U29: =IF(B29="","",RTD("cqg.rtd",,"StudyData", "Correlation("&B29&","&$U$21&",Period:="&$O$36&",InputChoice1:=Close,InputChoice2:=Close) when (LocalYear("&B29&")="&$I$36&" and LocalMonth("&B29&")="&$K$36&" and LocalDay("&B29&")="&$M$36&")", "Bar", "", "Close",$Q$36,, "all","", "","True","T")) -> 87.55080437
B30: QFA | C30: =IF(B30="","",RTD("cqg.rtd", ,"ContractData",B30, "LastQuoteToday",, "T")) -> 6636.5 | D30: =IF(B30="","",RTD("cqg.rtd", ,"ContractData",B30, "NetLastQuoteToday",, "T")) -> 18.5 | E30: =IF(B30="","",IF(ISERROR(RTD("cqg.rtd",,"ContractData",B30,"PerCentNetLastTrade",,"T")/100),"",RTD("cqg.rtd",,"ContractData",B30,"PerCentNetLastTrade",,"T")/100)) -> 0.002795406467 | G30: QFA | H30: =IF(B30="","",RTD("cqg.rtd",,"StudyData", "Correlation("&B30&","&$H$21&",Period:="&$O$36&",InputChoice1:=Close,InputChoice2:=Close) when (LocalYear("&B30&")="&$I$36&" and LocalMonth("&B30&")="&$K$36&" and LocalDay("&B30&")="&$M$36&")", "Bar", "", "Close",$Q$36,, "all","", "","True","T")) -> 71.40219097 | I30: =IF(B30="","",RTD("cqg.rtd",,"StudyData", "Correlation("&B30&","&$I$21&",Period:="&$O$36&",InputChoice1:=Close,InputChoice2:=Close) when (LocalYear("&B30&")="&$I$36&" and LocalMonth("&B30&")="&$K$36&" and LocalDay("&B30&")="&$M$36&")", "Bar", "", "Close",$Q$36,, "all","", "","True","T")) -> 49.37790895 | J30: =IF(B30="","",RTD("cqg.rtd",,"StudyData", "Correlation("&B30&","&$J$21&",Period:="&$O$36&",InputChoice1:=Close,InputChoice2:=Close) when (LocalYear("&B30&")="&$I$36&" and LocalMonth("&B30&")="&$K$36&" and LocalDay("&B30&")="&$M$36&")", "Bar", "", "Close",$Q$36,, "all","", "","True","T")) -> 61.90797664 | K30: =IF(B30="","",RTD("cqg.rtd",,"StudyData", "Correlation("&B30&","&$K$21&",Period:="&$O$36&",InputChoice1:=Close,InputChoice2:=Close) when (LocalYear("&B30&")="&$I$36&" and LocalMonth("&B30&")="&$K$36&" and LocalDay("&B30&")="&$M$36&")", "Bar", "", "Close",$Q$36,, "all","", "","True","T")) -> 79.20360279 | L30: =IF(B30="","",RTD("cqg.rtd",,"StudyData", "Correlation("&B30&","&$L$21&",Period:="&$O$36&",InputChoice1:=Close,InputChoice2:=Close) when (LocalYear("&B30&")="&$I$36&" and LocalMonth("&B30&")="&$K$36&" and LocalDay("&B30&")="&$M$36&")", "Bar", "", "Close",$Q$36,, "all","", "","True","T")) -> 84.42400601 | M30: =IF(B30="","",RTD("cqg.rtd",,"StudyData", "Correlation("&B30&","&$M$21&",Period:="&$O$36&",InputChoice1:=Close,InputChoice2:=Close) when (LocalYear("&B30&")="&$I$36&" and LocalMonth("&B30&")="&$K$36&" and LocalDay("&B30&")="&$M$36&")", "Bar", "", "Close",$Q$36,, "all","", "","True","T")) -> 80.27412659 | N30: =IF(B30="","",RTD("cqg.rtd",,"StudyData", "Correlation("&B30&","&$N$21&",Period:="&$O$36&",InputChoice1:=Close,InputChoice2:=Close) when (LocalYear("&B30&")="&$I$36&" and LocalMonth("&B30&")="&$K$36&" and LocalDay("&B30&")="&$M$36&")", "Bar", "", "Close",$Q$36,, "all","", "","True","T")) -> 84.57699757 | O30: =IF(B30="","",RTD("cqg.rtd",,"StudyData", "Correlation("&B30&","&$O$21&",Period:="&$O$36&",InputChoice1:=Close,InputChoice2:=Close) when (LocalYear("&B30&")="&$I$36&" and LocalMonth("&B30&")="&$K$36&" and LocalDay("&B30&")="&$M$36&")", "Bar", "", "Close",$Q$36,, "all","", "","True","T")) -> 92.22809656 | Q30: =IF(B30="","",RTD("cqg.rtd",,"StudyData", "Correlation("&B30&","&$Q$21&",Period:="&$O$36&",InputChoice1:=Close,InputChoice2:=Close) when (LocalYear("&B30&")="&$I$36&" and LocalMonth("&B30&")="&$K$36&" and LocalDay("&B30&")="&$M$36&")", "Bar", "", "Close",$Q$36,, "all","", "","True","T")) -> -74.18634017 | R30: =IF(B30="","",RTD("cqg.rtd",,"StudyData", "Correlation("&B30&","&$R$21&",Period:="&$O$36&",InputChoice1:=Close,InputChoice2:=Close) when (LocalYear("&B30&")="&$I$36&" and LocalMonth("&B30&")="&$K$36&" and LocalDay("&B30&")="&$M$36&")", "Bar", "", "Close",$Q$36,, "all","", "","True","T")) -> 22.02468332 | S30: =IF(B30="","",RTD("cqg.rtd",,"StudyData", "Correlation("&B30&","&$S$21&",Period:="&$O$36&",InputChoice1:=Close,InputChoice2:=Close) when (LocalYear("&B30&")="&$I$36&" and LocalMonth("&B30&")="&$K$36&" and LocalDay("&B30&")="&$M$36&")", "Bar", "", "Close",$Q$36,, "all","", "","True","T")) -> -35.24821234 | T30: =IF(B30="","",RTD("cqg.rtd",,"StudyData", "Correlation("&B30&","&$T$21&",Period:="&$O$36&",InputChoice1:=Close,InputChoice2:=Close) when (LocalYear("&B30&")="&$I$36&" and LocalMonth("&B30&")="&$K$36&" and LocalDay("&B30&")="&$M$36&")", "Bar", "", "Close",$Q$36,, "all","", "","True","T")) -> -66.61932417 | U30: =IF(B30="","",RTD("cqg.rtd",,"StudyData", "Correlation("&B30&","&$U$21&",Period:="&$O$36&",InputChoice1:=Close,InputChoice2:=Close) when (LocalYear("&B30&")="&$I$36&" and LocalMonth("&B30&")="&$K$36&" and LocalDay("&B30&")="&$M$36&")", "Bar", "", "Close",$Q$36,, "all","", "","True","T")) -> 71.51865377
B31: EU6 | C31: =IF(B31="","",RTD("cqg.rtd", ,"ContractData",B31, "LastQuoteToday",, "T")) -> 1.0962 | D31: =IF(B31="","",RTD("cqg.rtd", ,"ContractData",B31, "NetLastQuoteToday",, "T")) -> 0.0008 | E31: =IF(B31="","",IF(ISERROR(RTD("cqg.rtd",,"ContractData",B31,"PerCentNetLastTrade",,"T")/100),"",RTD("cqg.rtd",,"ContractData",B31,"PerCentNetLastTrade",,"T")/100)) -> 0.0007303268213 | G31: EU6 | H31: =IF(B31="","",RTD("cqg.rtd",,"StudyData", "Correlation("&B31&","&$H$21&",Period:="&$O$36&",InputChoice1:=Close,InputChoice2:=Close) when (LocalYear("&B31&")="&$I$36&" and LocalMonth("&B31&")="&$K$36&" and LocalDay("&B31&")="&$M$36&")", "Bar", "", "Close",$Q$36,, "all","", "","True","T")) -> -22.65988104 | I31: =IF(B31="","",RTD("cqg.rtd",,"StudyData", "Correlation("&B31&","&$I$21&",Period:="&$O$36&",InputChoice1:=Close,InputChoice2:=Close) when (LocalYear("&B31&")="&$I$36&" and LocalMonth("&B31&")="&$K$36&" and LocalDay("&B31&")="&$M$36&")", "Bar", "", "Close",$Q$36,, "all","", "","True","T")) -> -20.10054563 | J31: =IF(B31="","",RTD("cqg.rtd",,"StudyData", "Correlation("&B31&","&$J$21&",Period:="&$O$36&",InputChoice1:=Close,InputChoice2:=Close) when (LocalYear("&B31&")="&$I$36&" and LocalMonth("&B31&")="&$K$36&" and LocalDay("&B31&")="&$M$36&")", "Bar", "", "Close",$Q$36,, "all","", "","True","T")) -> -18.29382609 | K31: =IF(B31="","",RTD("cqg.rtd",,"StudyData", "Correlation("&B31&","&$K$21&",Period:="&$O$36&",InputChoice1:=Close,InputChoice2:=Close) when (LocalYear("&B31&")="&$I$36&" and LocalMonth("&B31&")="&$K$36&" and LocalDay("&B31&")="&$M$36&")", "Bar", "", "Close",$Q$36,, "all","", "","True","T")) -> -93.2499475 | L31: =IF(B31="","",RTD("cqg.rtd",,"StudyData", "Correlation("&B31&","&$L$21&",Period:="&$O$36&",InputChoice1:=Close,InputChoice2:=Close) when (LocalYear("&B31&")="&$I$36&" and LocalMonth("&B31&")="&$K$36&" and LocalDay("&B31&")="&$M$36&")", "Bar", "", "Close",$Q$36,, "all","", "","True","T")) -> -80.02657982 | M31: =IF(B31="","",RTD("cqg.rtd",,"StudyData", "Correlation("&B31&","&$M$21&",Period:="&$O$36&",InputChoice1:=Close,InputChoice2:=Close) when (LocalYear("&B31&")="&$I$36&" and LocalMonth("&B31&")="&$K$36&" and LocalDay("&B31&")="&$M$36&")", "Bar", "", "Close",$Q$36,, "all","", "","True","T")) -> -87.87368955 | N31: =IF(B31="","",RTD("cqg.rtd",,"StudyData", "Correlation("&B31&","&$N$21&",Period:="&$O$36&",InputChoice1:=Close,InputChoice2:=Close) when (LocalYear("&B31&")="&$I$36&" and LocalMonth("&B31&")="&$K$36&" and LocalDay("&B31&")="&$M$36&")", "Bar", "", "Close",$Q$36,, "all","", "","True","T")) -> -86.85736615 | O31: =IF(B31="","",RTD("cqg.rtd",,"StudyData", "Correlation("&B31&","&$O$21&",Period:="&$O$36&",InputChoice1:=Close,InputChoice2:=Close) when (LocalYear("&B31&")="&$I$36&" and LocalMonth("&B31&")="&$K$36&" and LocalDay("&B31&")="&$M$36&")", "Bar", "", "Close",$Q$36,, "all","", "","True","T")) -> -90.26377327 | P31: =IF(B31="","",RTD("cqg.rtd",,"StudyData", "Correlation("&B31&","&$P$21&",Period:="&$O$36&",InputChoice1:=Close,InputChoice2:=Close) when (LocalYear("&B31&")="&$I$36&" and LocalMonth("&B31&")="&$K$36&" and LocalDay("&B31&")="&$M$36&")", "Bar", "", "Close",$Q$36,, "all","", "","True","T")) -> -74.18634017 | R31: =IF(B31="","",RTD("cqg.rtd",,"StudyData", "Correlation("&B31&","&$R$21&",Period:="&$O$36&",InputChoice1:=Close,InputChoice2:=Close) when (LocalYear("&B31&")="&$I$36&" and LocalMonth("&B31&")="&$K$36&" and LocalDay("&B31&")="&$M$36&")", "Bar", "", "Close",$Q$36,, "all","", "","True","T")) -> -13.66812014 | S31: =IF(B31="","",RTD("cqg.rtd",,"StudyData", "Correlation("&B31&","&$S$21&",Period:="&$O$36&",InputChoice1:=Close,InputChoice2:=Close) when (LocalYear("&B31&")="&$I$36&" and LocalMonth("&B31&")="&$K$36&" and LocalDay("&B31&")="&$M$36&")", "Bar", "", "Close",$Q$36,, "all","", "","True","T")) -> 47.97148834 | T31: =IF(B31="","",RTD("cqg.rtd",,"StudyData", "Correlation("&B31&","&$T$21&",Period:="&$O$36&",InputChoice1:=Close,InputChoice2:=Close) when (LocalYear("&B31&")="&$I$36&" and LocalMonth("&B31&")="&$K$36&" and LocalDay("&B31&")="&$M$36&")", "Bar", "", "Close",$Q$36,, "all","", "","True","T")) -> 84.19625227 | U31: =IF(B31="","",RTD("cqg.rtd",,"StudyData", "Correlation("&B31&","&$U$21&",Period:="&$O$36&",InputChoice1:=Close,InputChoice2:=Close) when (LocalYear("&B31&")="&$I$36&" and LocalMonth("&B31&")="&$K$36&" and LocalDay("&B31&")="&$M$36&")", "Bar", "", "Close",$Q$36,, "all","", "","True","T")) -> -99.18536793
B32: GCE | C32: =IF(B32="","",RTD("cqg.rtd", ,"ContractData",B32, "LastQuoteToday",, "T")) -> 1091.9 | D32: =IF(B32="","",RTD("cqg.rtd", ,"ContractData",B32, "NetLastQuoteToday",, "T")) -> 2.5 | E32: =IF(B32="","",IF(ISERROR(RTD("cqg.rtd",,"ContractData",B32,"PerCentNetLastTrade",,"T")/100),"",RTD("cqg.rtd",,"ContractData",B32,"PerCentNetLastTrade",,"T")/100)) -> 0.002294841197 | G32: GCE | H32: =IF(B32="","",RTD("cqg.rtd",,"StudyData", "Correlation("&B32&","&$H$21&",Period:="&$O$36&",InputChoice1:=Close,InputChoice2:=Close) when (LocalYear("&B32&")="&$I$36&" and LocalMonth("&B32&")="&$K$36&" and LocalDay("&B32&")="&$M$36&")", "Bar", "", "Close",$Q$36,, "all","", "","True","T")) -> -1.13360742 | I32: =IF(B32="","",RTD("cqg.rtd",,"StudyData", "Correlation("&B32&","&$I$21&",Period:="&$O$36&",InputChoice1:=Close,InputChoice2:=Close) when (LocalYear("&B32&")="&$I$36&" and LocalMonth("&B32&")="&$K$36&" and LocalDay("&B32&")="&$M$36&")", "Bar", "", "Close",$Q$36,, "all","", "","True","T")) -> 1.50065662 | J32: =IF(B32="","",RTD("cqg.rtd",,"StudyData", "Correlation("&B32&","&$J$21&",Period:="&$O$36&",InputChoice1:=Close,InputChoice2:=Close) when (LocalYear("&B32&")="&$I$36&" and LocalMonth("&B32&")="&$K$36&" and LocalDay("&B32&")="&$M$36&")", "Bar", "", "Close",$Q$36,, "all","", "","True","T")) -> 7.94095953 | K32: =IF(B32="","",RTD("cqg.rtd",,"StudyData", "Correlation("&B32&","&$K$21&",Period:="&$O$36&",InputChoice1:=Close,InputChoice2:=Close) when (LocalYear("&B32&")="&$I$36&" and LocalMonth("&B32&")="&$K$36&" and LocalDay("&B32&")="&$M$36&")", "Bar", "", "Close",$Q$36,, "all","", "","True","T")) -> 41.73965433 | L32: =IF(B32="","",RTD("cqg.rtd",,"StudyData", "Correlation("&B32&","&$L$21&",Period:="&$O$36&",InputChoice1:=Close,InputChoice2:=Close) when (LocalYear("&B32&")="&$I$36&" and LocalMonth("&B32&")="&$K$36&" and LocalDay("&B32&")="&$M$36&")", "Bar", "", "Close",$Q$36,, "all","", "","True","T")) -> 29.9690793 | M32: =IF(B32="","",RTD("cqg.rtd",,"StudyData", "Correlation("&B32&","&$M$21&",Period:="&$O$36&",InputChoice1:=Close,InputChoice2:=Close) when (LocalYear("&B32&")="&$I$36&" and LocalMonth("&B32&")="&$K$36&" and LocalDay("&B32&")="&$M$36&")", "Bar", "", "Close",$Q$36,, "all","", "","True","T")) -> 27.11836845 | N32: =IF(B32="","",RTD("cqg.rtd",,"StudyData", "Correlation("&B32&","&$N$21&",Period:="&$O$36&",InputChoice1:=Close,InputChoice2:=Close) when (LocalYear("&B32&")="&$I$36&" and LocalMonth("&B32&")="&$K$36&" and LocalDay("&B32&")="&$M$36&")", "Bar", "", "Close",$Q$36,, "all","", "","True","T")) -> 30.16773965 | O32: =IF(B32="","",RTD("cqg.rtd",,"StudyData", "Correlation("&B32&","&$O$21&",Period:="&$O$36&",InputChoice1:=Close,InputChoice2:=Close) when (LocalYear("&B32&")="&$I$36&" and LocalMonth("&B32&")="&$K$36&" and LocalDay("&B32&")="&$M$36&")", "Bar", "", "Close",$Q$36,, "all","", "","True","T")) -> 31.7591744 | P32: =IF(B32="","",RTD("cqg.rtd",,"StudyData", "Correlation("&B32&","&$P$21&",Period:="&$O$36&",InputChoice1:=Close,InputChoice2:=Close) when (LocalYear("&B32&")="&$I$36&" and LocalMonth("&B32&")="&$K$36&" and LocalDay("&B32&")="&$M$36&")", "Bar", "", "Close",$Q$36,, "all","", "","True","T")) -> 22.02468332 | Q32: =IF(B32="","",RTD("cqg.rtd",,"StudyData", "Correlation("&B32&","&$Q$21&",Period:="&$O$36&",InputChoice1:=Close,InputChoice2:=Close) when (LocalYear("&B32&")="&$I$36&" and LocalMonth("&B32&")="&$K$36&" and LocalDay("&B32&")="&$M$36&")", "Bar", "", "Close",$Q$36,, "all","", "","True","T")) -> -13.66811933 | S32: =IF(B32="","",RTD("cqg.rtd",,"StudyData", "Correlation("&B32&","&$S$21&",Period:="&$O$36&",InputChoice1:=Close,InputChoice2:=Close) when (LocalYear("&B32&")="&$I$36&" and LocalMonth("&B32&")="&$K$36&" and LocalDay("&B32&")="&$M$36&")", "Bar", "", "Close",$Q$36,, "all","", "","True","T")) -> 48.35039224 | T32: =IF(B32="","",RTD("cqg.rtd",,"StudyData", "Correlation("&B32&","&$T$21&",Period:="&$O$36&",InputChoice1:=Close,InputChoice2:=Close) when (LocalYear("&B32&")="&$I$36&" and LocalMonth("&B32&")="&$K$36&" and LocalDay("&B32&")="&$M$36&")", "Bar", "", "Close",$Q$36,, "all","", "","True","T")) -> -33.16863495 | U32: =IF(B32="","",RTD("cqg.rtd",,"StudyData", "Correlation("&B32&","&$U$21&",Period:="&$O$36&",InputChoice1:=Close,InputChoice2:=Close) when (LocalYear("&B32&")="&$I$36&" and LocalMonth("&B32&")="&$K$36&" and LocalDay("&B32&")="&$M$36&")", "Bar", "", "Close",$Q$36,, "all","", "","True","T")) -> 33.67111537
B33: SIE | C33: =IF(B33="","",RTD("cqg.rtd", ,"ContractData",B33, "LastQuoteToday",, "T")) -> 14.595 | D33: =IF(B33="","",RTD("cqg.rtd", ,"ContractData",B33, "NetLastQuoteToday",, "T")) -> 0.08 | E33: =IF(B33="","",IF(ISERROR(RTD("cqg.rtd",,"ContractData",B33,"PerCentNetLastTrade",,"T")/100),"",RTD("cqg.rtd",,"ContractData",B33,"PerCentNetLastTrade",,"T")/100)) -> 0.005511539786 | G33: SIE | H33: =IF(B33="","",RTD("cqg.rtd",,"StudyData", "Correlation("&B33&","&$H$21&",Period:="&$O$36&",InputChoice1:=Close,InputChoice2:=Close) when (LocalYear("&B33&")="&$I$36&" and LocalMonth("&B33&")="&$K$36&" and LocalDay("&B33&")="&$M$36&")", "Bar", "", "Close",$Q$36,, "all","", "","True","T")) -> -10.8065781 | I33: =IF(B33="","",RTD("cqg.rtd",,"StudyData", "Correlation("&B33&","&$I$21&",Period:="&$O$36&",InputChoice1:=Close,InputChoice2:=Close) when (LocalYear("&B33&")="&$I$36&" and LocalMonth("&B33&")="&$K$36&" and LocalDay("&B33&")="&$M$36&")", "Bar", "", "Close",$Q$36,, "all","", "","True","T")) -> -12.95285147 | J33: =IF(B33="","",RTD("cqg.rtd",,"StudyData", "Correlation("&B33&","&$J$21&",Period:="&$O$36&",InputChoice1:=Close,InputChoice2:=Close) when (LocalYear("&B33&")="&$I$36&" and LocalMonth("&B33&")="&$K$36&" and LocalDay("&B33&")="&$M$36&")", "Bar", "", "Close",$Q$36,, "all","", "","True","T")) -> 8.16257204 | K33: =IF(B33="","",RTD("cqg.rtd",,"StudyData", "Correlation("&B33&","&$K$21&",Period:="&$O$36&",InputChoice1:=Close,InputChoice2:=Close) when (LocalYear("&B33&")="&$I$36&" and LocalMonth("&B33&")="&$K$36&" and LocalDay("&B33&")="&$M$36&")", "Bar", "", "Close",$Q$36,, "all","", "","True","T")) -> -46.35533294 | L33: =IF(B33="","",RTD("cqg.rtd",,"StudyData", "Correlation("&B33&","&$L$21&",Period:="&$O$36&",InputChoice1:=Close,InputChoice2:=Close) when (LocalYear("&B33&")="&$I$36&" and LocalMonth("&B33&")="&$K$36&" and LocalDay("&B33&")="&$M$36&")", "Bar", "", "Close",$Q$36,, "all","", "","True","T")) -> -45.41481161 | M33: =IF(B33="","",RTD("cqg.rtd",,"StudyData", "Correlation("&B33&","&$M$21&",Period:="&$O$36&",InputChoice1:=Close,InputChoice2:=Close) when (LocalYear("&B33&")="&$I$36&" and LocalMonth("&B33&")="&$K$36&" and LocalDay("&B33&")="&$M$36&")", "Bar", "", "Close",$Q$36,, "all","", "","True","T")) -> -36.00257346 | N33: =IF(B33="","",RTD("cqg.rtd",,"StudyData", "Correlation("&B33&","&$N$21&",Period:="&$O$36&",InputChoice1:=Close,InputChoice2:=Close) when (LocalYear("&B33&")="&$I$36&" and LocalMonth("&B33&")="&$K$36&" and LocalDay("&B33&")="&$M$36&")", "Bar", "", "Close",$Q$36,, "all","", "","True","T")) -> -37.60776667 | O33: =IF(B33="","",RTD("cqg.rtd",,"StudyData", "Correlation("&B33&","&$O$21&",Period:="&$O$36&",InputChoice1:=Close,InputChoice2:=Close) when (LocalYear("&B33&")="&$I$36&" and LocalMonth("&B33&")="&$K$36&" and LocalDay("&B33&")="&$M$36&")", "Bar", "", "Close",$Q$36,, "all","", "","True","T")) -> -46.14249362 | P33: =IF(B33="","",RTD("cqg.rtd",,"StudyData", "Correlation("&B33&","&$P$21&",Period:="&$O$36&",InputChoice1:=Close,InputChoice2:=Close) when (LocalYear("&B33&")="&$I$36&" and LocalMonth("&B33&")="&$K$36&" and LocalDay("&B33&")="&$M$36&")", "Bar", "", "Close",$Q$36,, "all","", "","True","T")) -> -35.24821234 | Q33: =IF(B33="","",RTD("cqg.rtd",,"StudyData", "Correlation("&B33&","&$Q$21&",Period:="&$O$36&",InputChoice1:=Close,InputChoice2:=Close) when (LocalYear("&B33&")="&$I$36&" and LocalMonth("&B33&")="&$K$36&" and LocalDay("&B33&")="&$M$36&")", "Bar", "", "Close",$Q$36,, "all","", "","True","T")) -> 47.97148834 | R33: =IF(B33="","",RTD("cqg.rtd",,"StudyData", "Correlation("&B33&","&$R$21&",Period:="&$O$36&",InputChoice1:=Close,InputChoice2:=Close) when (LocalYear("&B33&")="&$I$36&" and LocalMonth("&B33&")="&$K$36&" and LocalDay("&B33&")="&$M$36&")", "Bar", "", "Close",$Q$36,, "all","", "","True","T")) -> 48.35039224 | T33: =IF(B33="","",RTD("cqg.rtd",,"StudyData", "Correlation("&B33&","&$T$21&",Period:="&$O$36&",InputChoice1:=Close,InputChoice2:=Close) when (LocalYear("&B33&")="&$I$36&" and LocalMonth("&B33&")="&$K$36&" and LocalDay("&B33&")="&$M$36&")", "Bar", "", "Close",$Q$36,, "all","", "","True","T")) -> 50.78031394 | U33: =IF(B33="","",RTD("cqg.rtd",,"StudyData", "Correlation("&B33&","&$U$21&",Period:="&$O$36&",InputChoice1:=Close,InputChoice2:=Close) when (LocalYear("&B33&")="&$I$36&" and LocalMonth("&B33&")="&$K$36&" and LocalDay("&B33&")="&$M$36&")", "Bar", "", "Close",$Q$36,, "all","", "","True","T")) -> -55.55150102
B34: CLE | C34: =IF(B34="","",RTD("cqg.rtd", ,"ContractData",B34, "LastQuoteToday",, "T")) -> 46.04 | D34: =IF(B34="","",RTD("cqg.rtd", ,"ContractData",B34, "NetLastQuoteToday",, "T")) -> 0.87 | E34: =IF(B34="","",IF(ISERROR(RTD("cqg.rtd",,"ContractData",B34,"PerCentNetLastTrade",,"T")/100),"",RTD("cqg.rtd",,"ContractData",B34,"PerCentNetLastTrade",,"T")/100)) -> 0.01926057118 | G34: CLE | H34: =IF(B34="","",RTD("cqg.rtd",,"StudyData", "Correlation("&B34&","&$H$21&",Period:="&$O$36&",InputChoice1:=Close,InputChoice2:=Close) when (LocalYear("&B34&")="&$I$36&" and LocalMonth("&B34&")="&$K$36&" and LocalDay("&B34&")="&$M$36&")", "Bar", "", "Close",$Q$36,, "all","", "","True","T")) -> -36.76843043 | I34: =IF(B34="","",RTD("cqg.rtd",,"StudyData", "Correlation("&B34&","&$I$21&",Period:="&$O$36&",InputChoice1:=Close,InputChoice2:=Close) when (LocalYear("&B34&")="&$I$36&" and LocalMonth("&B34&")="&$K$36&" and LocalDay("&B34&")="&$M$36&")", "Bar", "", "Close",$Q$36,, "all","", "","True","T")) -> -40.69132005 | J34: =IF(B34="","",RTD("cqg.rtd",,"StudyData", "Correlation("&B34&","&$J$21&",Period:="&$O$36&",InputChoice1:=Close,InputChoice2:=Close) when (LocalYear("&B34&")="&$I$36&" and LocalMonth("&B34&")="&$K$36&" and LocalDay("&B34&")="&$M$36&")", "Bar", "", "Close",$Q$36,, "all","", "","True","T")) -> -17.05510825 | K34: =IF(B34="","",RTD("cqg.rtd",,"StudyData", "Correlation("&B34&","&$K$21&",Period:="&$O$36&",InputChoice1:=Close,InputChoice2:=Close) when (LocalYear("&B34&")="&$I$36&" and LocalMonth("&B34&")="&$K$36&" and LocalDay("&B34&")="&$M$36&")", "Bar", "", "Close",$Q$36,, "all","", "","True","T")) -> -80.97803925 | L34: =IF(B34="","",RTD("cqg.rtd",,"StudyData", "Correlation("&B34&","&$L$21&",Period:="&$O$36&",InputChoice1:=Close,InputChoice2:=Close) when (LocalYear("&B34&")="&$I$36&" and LocalMonth("&B34&")="&$K$36&" and LocalDay("&B34&")="&$M$36&")", "Bar", "", "Close",$Q$36,, "all","", "","True","T")) -> -74.28824842 | M34: =IF(B34="","",RTD("cqg.rtd",,"StudyData", "Correlation("&B34&","&$M$21&",Period:="&$O$36&",InputChoice1:=Close,InputChoice2:=Close) when (LocalYear("&B34&")="&$I$36&" and LocalMonth("&B34&")="&$K$36&" and LocalDay("&B34&")="&$M$36&")", "Bar", "", "Close",$Q$36,, "all","", "","True","T")) -> -78.93640622 | N34: =IF(B34="","",RTD("cqg.rtd",,"StudyData", "Correlation("&B34&","&$N$21&",Period:="&$O$36&",InputChoice1:=Close,InputChoice2:=Close) when (LocalYear("&B34&")="&$I$36&" and LocalMonth("&B34&")="&$K$36&" and LocalDay("&B34&")="&$M$36&")", "Bar", "", "Close",$Q$36,, "all","", "","True","T")) -> -79.82940356 | O34: =IF(B34="","",RTD("cqg.rtd",,"StudyData", "Correlation("&B34&","&$O$21&",Period:="&$O$36&",InputChoice1:=Close,InputChoice2:=Close) when (LocalYear("&B34&")="&$I$36&" and LocalMonth("&B34&")="&$K$36&" and LocalDay("&B34&")="&$M$36&")", "Bar", "", "Close",$Q$36,, "all","", "","True","T")) -> -83.25401489 | P34: =IF(B34="","",RTD("cqg.rtd",,"StudyData", "Correlation("&B34&","&$P$21&",Period:="&$O$36&",InputChoice1:=Close,InputChoice2:=Close) when (LocalYear("&B34&")="&$I$36&" and LocalMonth("&B34&")="&$K$36&" and LocalDay("&B34&")="&$M$36&")", "Bar", "", "Close",$Q$36,, "all","", "","True","T")) -> -66.61932417 | Q34: =IF(B34="","",RTD("cqg.rtd",,"StudyData", "Correlation("&B34&","&$Q$21&",Period:="&$O$36&",InputChoice1:=Close,InputChoice2:=Close) when (LocalYear("&B34&")="&$I$36&" and LocalMonth("&B34&")="&$K$36&" and LocalDay("&B34&")="&$M$36&")", "Bar", "", "Close",$Q$36,, "all","", "","True","T")) -> 84.19625227 | R34: =IF(B34="","",RTD("cqg.rtd",,"StudyData", "Correlation("&B34&","&$R$21&",Period:="&$O$36&",InputChoice1:=Close,InputChoice2:=Close) when (LocalYear("&B34&")="&$I$36&" and LocalMonth("&B34&")="&$K$36&" and LocalDay("&B34&")="&$M$36&")", "Bar", "", "Close",$Q$36,, "all","", "","True","T")) -> -33.16863494 | S34: =IF(B34="","",RTD("cqg.rtd",,"StudyData", "Correlation("&B34&","&$S$21&",Period:="&$O$36&",InputChoice1:=Close,InputChoice2:=Close) when (LocalYear("&B34&")="&$I$36&" and LocalMonth("&B34&")="&$K$36&" and LocalDay("&B34&")="&$M$36&")", "Bar", "", "Close",$Q$36,, "all","", "","True","T")) -> 50.78031394 | U34: =IF(B34="","",RTD("cqg.rtd",,"StudyData", "Correlation("&B34&","&$U$21&",Period:="&$O$36&",InputChoice1:=Close,InputChoice2:=Close) when (LocalYear("&B34&")="&$I$36&" and LocalMonth("&B34&")="&$K$36&" and LocalDay("&B34&")="&$M$36&")", "Bar", "", "Close",$Q$36,, "all","", "","True","T")) -> -82.7023459
B35: DXE | C35: =IF(B35="","",RTD("cqg.rtd", ,"ContractData",B35, "LastQuoteToday",, "T")) -> 97.52 | D35: =IF(B35="","",RTD("cqg.rtd", ,"ContractData",B35, "NetLastQuoteToday",, "T")) -> -0.096 | E35: =IF(B35="","",IF(ISERROR(RTD("cqg.rtd",,"ContractData",B35,"PerCentNetLastTrade",,"T")/100),"",RTD("cqg.rtd",,"ContractData",B35,"PerCentNetLastTrade",,"T")/100)) -> -0.0008810031142 | G35: DXE | H35: =IF(B35="","",RTD("cqg.rtd",,"StudyData", "Correlation("&B35&","&$H$21&",Period:="&$O$36&",InputChoice1:=Close,InputChoice2:=Close) when (LocalYear("&B35&")="&$I$36&" and LocalMonth("&B35&")="&$K$36&" and LocalDay("&B35&")="&$M$36&")", "Bar", "", "Close",$Q$36,, "all","", "","True","T")) -> 21.48117238 | I35: =IF(B35="","",RTD("cqg.rtd",,"StudyData", "Correlation("&B35&","&$I$21&",Period:="&$O$36&",InputChoice1:=Close,InputChoice2:=Close) when (LocalYear("&B35&")="&$I$36&" and LocalMonth("&B35&")="&$K$36&" and LocalDay("&B35&")="&$M$36&")", "Bar", "", "Close",$Q$36,, "all","", "","True","T")) -> 9.04665432 | J35: =IF(B35="","",RTD("cqg.rtd",,"StudyData", "Correlation("&B35&","&$J$21&",Period:="&$O$36&",InputChoice1:=Close,InputChoice2:=Close) when (LocalYear("&B35&")="&$I$36&" and LocalMonth("&B35&")="&$K$36&" and LocalDay("&B35&")="&$M$36&")", "Bar", "", "Close",$Q$36,, "all","", "","True","T")) -> 12.02758168 | K35: =IF(B35="","",RTD("cqg.rtd",,"StudyData", "Correlation("&B35&","&$K$21&",Period:="&$O$36&",InputChoice1:=Close,InputChoice2:=Close) when (LocalYear("&B35&")="&$I$36&" and LocalMonth("&B35&")="&$K$36&" and LocalDay("&B35&")="&$M$36&")", "Bar", "", "Close",$Q$36,, "all","", "","True","T")) -> 89.98088979 | L35: =IF(B35="","",RTD("cqg.rtd",,"StudyData", "Correlation("&B35&","&$L$21&",Period:="&$O$36&",InputChoice1:=Close,InputChoice2:=Close) when (LocalYear("&B35&")="&$I$36&" and LocalMonth("&B35&")="&$K$36&" and LocalDay("&B35&")="&$M$36&")", "Bar", "", "Close",$Q$36,, "all","", "","True","T")) -> 81.70701974 | M35: =IF(B35="","",RTD("cqg.rtd",,"StudyData", "Correlation("&B35&","&$M$21&",Period:="&$O$36&",InputChoice1:=Close,InputChoice2:=Close) when (LocalYear("&B35&")="&$I$36&" and LocalMonth("&B35&")="&$K$36&" and LocalDay("&B35&")="&$M$36&")", "Bar", "", "Close",$Q$36,, "all","", "","True","T")) -> 87.34155529 | N35: =IF(B35="","",RTD("cqg.rtd",,"StudyData", "Correlation("&B35&","&$N$21&",Period:="&$O$36&",InputChoice1:=Close,InputChoice2:=Close) when (LocalYear("&B35&")="&$I$36&" and LocalMonth("&B35&")="&$K$36&" and LocalDay("&B35&")="&$M$36&")", "Bar", "", "Close",$Q$36,, "all","", "","True","T")) -> 84.80144461 | O35: =IF(B35="","",RTD("cqg.rtd",,"StudyData", "Correlation("&B35&","&$O$21&",Period:="&$O$36&",InputChoice1:=Close,InputChoice2:=Close) when (LocalYear("&B35&")="&$I$36&" and LocalMonth("&B35&")="&$K$36&" and LocalDay("&B35&")="&$M$36&")", "Bar", "", "Close",$Q$36,, "all","", "","True","T")) -> 87.55080437 | P35: =IF(B35="","",RTD("cqg.rtd",,"StudyData", "Correlation("&B35&","&$P$21&",Period:="&$O$36&",InputChoice1:=Close,InputChoice2:=Close) when (LocalYear("&B35&")="&$I$36&" and LocalMonth("&B35&")="&$K$36&" and LocalDay("&B35&")="&$M$36&")", "Bar", "", "Close",$Q$36,, "all","", "","True","T")) -> 71.51865377 | Q35: =IF(B35="","",RTD("cqg.rtd",,"StudyData", "Correlation("&B35&","&$Q$21&",Period:="&$O$36&",InputChoice1:=Close,InputChoice2:=Close) when (LocalYear("&B35&")="&$I$36&" and LocalMonth("&B35&")="&$K$36&" and LocalDay("&B35&")="&$M$36&")", "Bar", "", "Close",$Q$36,, "all","", "","True","T")) -> -99.18536793 | R35: =IF(B35="","",RTD("cqg.rtd",,"StudyData", "Correlation("&B35&","&$R$21&",Period:="&$O$36&",InputChoice1:=Close,InputChoice2:=Close) when (LocalYear("&B35&")="&$I$36&" and LocalMonth("&B35&")="&$K$36&" and LocalDay("&B35&")="&$M$36&")", "Bar", "", "Close",$Q$36,, "all","", "","True","T")) -> 33.67111537 | S35: =IF(B35="","",RTD("cqg.rtd",,"StudyData", "Correlation("&B35&","&$S$21&",Period:="&$O$36&",InputChoice1:=Close,InputChoice2:=Close) when (LocalYear("&B35&")="&$I$36&" and LocalMonth("&B35&")="&$K$36&" and LocalDay("&B35&")="&$M$36&")", "Bar", "", "Close",$Q$36,, "all","", "","True","T")) -> -55.55150103 | T35: =IF(B35="","",RTD("cqg.rtd",,"StudyData", "Correlation("&B35&","&$T$21&",Period:="&$O$36&",InputChoice1:=Close,InputChoice2:=Close) when (LocalYear("&B35&")="&$I$36&" and LocalMonth("&B35&")="&$K$36&" and LocalDay("&B35&")="&$M$36&")", "Bar", "", "Close",$Q$36,, "all","", "","True","T")) -> -82.7023459
B36: Chicago | C36: =RTD("cqg.rtd", ,"SystemInfo", "Linetime") -> 42220.46727 | H36: Year: | I36: 2015 | J36: Month: | K36: 5 | L36: Day: | M36: 12 | N36: Look Back: | O36: 20 | P36: Period: | Q36: ADC | S36: =YEAR(TODAY()) -> 2015 | T36: =MONTH(TODAY()) -> 8 | U36: =DAY(TODAY()) -> 4
